Workbook

Sheet RESUMO
C2: MINISTÉRIO DA INTEGRAÇÃO E DO DESENVOLVIMENTO REGIONAL - MIDR | D2: RESUMO
C3: COMPANHIA DE DESENVOLVIMENTO DOS VALES DO SÃO FRANCISCO E DO PARNAÍBA
C4: 2ª SUPERINTENDÊNCIA REGIONAL - BOM JESUS DA LAPA/BA.
C5: GERÊNCIA DE INFRAESTRUTURA - 2ª/GRD
B7: OBJETO: EXECUÇÃO DE SERVIÇOS DE ESCAVAÇÃO EM SOLO DE 1ª CATEGORIA, OBJETIVANDO À IMPLANTAÇÃO DE RESERVATÓRIOS PARA ACÚMULO DE ÁGUA EM COMUNIDADES DE CARÁTER RURAL EM DIVERSOS MUNICÍPIOS DO ESTADO DA BAHIA, NA ÁREA DE ATUAÇÃO DA 2ª SR DA CODEVASF.
B10: ITEM | C10: DESCRIÇÃO | D10: QUANTIDADE | E10: UNIDADE | F10: PREÇO UNITÁRIO | G10: PREÇO TOTAL
B11: 1 | C11: ESCAVAÇÃO EM SOLO DE 1ª CATEGORIA, OBJETIVANDO À IMPLANTAÇÃO DE RESERVATÓRIOS PARA ACÚMULO DE ÁGUA | D11: =1400*200 -> 280000 | E11: M³ | F11: =TRUNC(G11/D11,4) -> 17.1894 | G11: ='PLANILHA GLOBAL'!L34 -> 4813055.84

Sheet PLANILHA GLOBAL
D2: MINISTÉRIO DA INTEGRAÇÃO E DO DESENVOLVIMENTO REGIONAL - MIDR | I2: PLANILHA ORÇAMENTÁRIA DE EXECUÇÃO - GLOBAL
D3: COMPANHIA DE DESENVOLVIMENTO DOS VALES DO SÃO FRANCISCO E DO PARNAÍBA
D4: 2ª SUPERINTENDÊNCIA REGIONAL - BOM JESUS DA LAPA/BA.
D5: GERÊNCIA DE INFRAESTRUTURA - 2ª/GRD
B7: OBJETO: EXECUÇÃO DE SERVIÇOS DE ESCAVAÇÃO EM SOLO DE 1ª CATEGORIA, OBJETIVANDO À IMPLANTAÇÃO DE RESERVATÓRIOS PARA ACÚMULO DE ÁGUA EM COMUNIDADES DE CARÁTER RURAL EM DIVERSOS MUNICÍPIOS DO ESTADO DA BAHIA, NA ÁREA DE ATUAÇÃO DA 2ª SR DA CODEVASF.
B9: MESES DE REFERÊNCIA: SINAPI-BA: AGOSTO/2025; SICRO-BA: JULHO/2025; TC DNIT: JULHO/2025. BDI: 21,50%. ENCARGOS SOCIAIS: 115,57% (HORISTA) E 71,29% (MENSALISTA).
B11: PLANILHA ORÇAMENTÁRIA GLOBAL - SEM DESONERAÇÃO
B13: ID | C13: DISCRIMINAÇÃO DOS SERVIÇOS | E13: UND | F13: QUANTIDADE POR MÓDULO | G13: QUANTIDADE DE MÓDULOS | H13: QUANTIDADE | I13: CUSTO UNITÁRIO | J13: PREÇO UNITÁRIO | K13: CUSTO TOTAL | L13: PREÇO TOTAL | M13: %
B15: 1 | C15: SERVIÇOS AUXILIARES | M15: %
B16: ='COMP. MÓD. 1.400 M³'!B15 -> 1.1 | C16: ='COMP. MÓD. 1.400 M³'!C15 -> SICRO 5914639 | D16: ='COMP. MÓD. 1.400 M³'!D15 -> TRANSPORTE DE EQUIPAMENTOS EM RODOVIA COM REVESTIMENTO PRIMÁRIO - MOBILIZAÇÃO | E16: ='COMP. MÓD. 1.400 M³'!E15 -> TON x KM | F16: ='COMP. MÓD. 1.400 M³'!F15 -> 235.8 | G16: =25*8 -> 200 | H16: =TRUNC((F16*G16),2) -> 47160 | I16: ='COMP. MÓD. 1.400 M³'!G15 -> 0.7 | J16: ='COMP. MÓD. 1.400 M³'!I15 -> 0.85 | K16: =TRUNC(F16*G16*I16,2) -> 33012 | L16: =TRUNC(F16*G16*J16,2) -> 40086 | M16: =((L16/$L$34)) -> 0.008328596495
B17: ='COMP. MÓD. 1.400 M³'!B16 -> 1.2 | C17: ='COMP. MÓD. 1.400 M³'!C16 -> SICRO 5914640 | D17: ='COMP. MÓD. 1.400 M³'!D16 -> TRANSPORTE DE EQUIPAMENTOS EM RODOVIA PAVIMENTADA - MOBILIZAÇÃO | E17: ='COMP. MÓD. 1.400 M³'!E16 -> TON x KM | F17: ='COMP. MÓD. 1.400 M³'!F16 -> 314.4 | G17: =$G$16 -> 200 | H17: 62880 | I17: ='COMP. MÓD. 1.400 M³'!G16 -> 0.58 | J17: ='COMP. MÓD. 1.400 M³'!I16 -> 0.7 | K17: =TRUNC(F17*G17*I17,2) -> 36470.4 | L17: =TRUNC(F17*G17*J17,2) -> 44016 | M17: 0.009145125563
B18: ='COMP. MÓD. 1.400 M³'!B17 -> 1.3 | C18: ='COMP. MÓD. 1.400 M³'!C17 -> CPU-01 | D18: ='COMP. MÓD. 1.400 M³'!D17 -> ADMINISTRAÇÃO LOCAL | E18: ='COMP. MÓD. 1.400 M³'!E17 -> % | F18: 0.005 | G18: 200 | H18: 1 | I18: ='COMPOSIÇÕES MISTAS'!H17 -> 1012.76 | J18: ='COMP. MÓD. 1.400 M³'!I17 -> 1230.5 | K18: =TRUNC(G18*H18*I18,2) -> 202552 | L18: =TRUNC(G18*H18*J18,2) -> 246100 | M18: 0.05113175666
B19: ='COMP. MÓD. 1.400 M³'!B18 -> 1.4 | C19: ='COMP. MÓD. 1.400 M³'!C18 -> CPU-02 | D19: ='COMP. MÓD. 1.400 M³'!D18 -> PLACA DE OBRA EM CHAPA DE AÇO GALVANIZADO (3,20 M x 1,60 M) | E19: ='COMP. MÓD. 1.400 M³'!E18 -> M² | F19: ='COMP. MÓD. 1.400 M³'!F18 -> 0.64 | G19: 200 | H19: 128 | I19: ='COMP. MÓD. 1.400 M³'!G18 -> 511.21 | J19: ='COMP. MÓD. 1.400 M³'!I18 -> 621.12 | K19: =TRUNC(F19*G19*I19,2) -> 65434.88 | L19: =TRUNC(F19*G19*J19,2) -> 79503.36 | M19: 0.01651827085
B20: ='COMP. MÓD. 1.400 M³'!B19 -> 1.5 | C20: ='COMP. MÓD. 1.400 M³'!C19 -> SICRO 5914639 | D20: ='COMP. MÓD. 1.400 M³'!D19 -> TRANSPORTE DE EQUIPAMENTOS EM RODOVIA COM REVESTIMENTO PRIMÁRIO - DESMOBILIZAÇÃO | E20: ='COMP. MÓD. 1.400 M³'!E19 -> TON x KM | F20: ='COMP. MÓD. 1.400 M³'!F19 -> 235.8 | G20: 200 | H20: 47160 | I20: ='COMP. MÓD. 1.400 M³'!G19 -> 0.7 | J20: ='COMP. MÓD. 1.400 M³'!I19 -> 0.85 | K20: 33012 | L20: 40086 | M20: 0.008328596495
B21: ='COMP. MÓD. 1.400 M³'!B20 -> 1.6 | C21: ='COMP. MÓD. 1.400 M³'!C20 -> SICRO 5914640 | D21: ='COMP. MÓD. 1.400 M³'!D20 -> TRANSPORTE DE EQUIPAMENTOS EM RODOVIA PAVIMENTADA - DESMOBILIZAÇÃO | E21: ='COMP. MÓD. 1.400 M³'!E20 -> TON x KM | F21: ='COMP. MÓD. 1.400 M³'!F20 -> 314.4 | G21: 200 | H21: 62880 | I21: ='COMP. MÓD. 1.400 M³'!G20 -> 0.58 | J21: ='COMP. MÓD. 1.400 M³'!I20 -> 0.7 | K21: 36470.4 | L21: 44016 | M21: 0.009145125563
B22: ='COMP. MÓD. 1.400 M³'!B21 -> 1.7 | C22: ='COMP. MÓD. 1.400 M³'!C21 -> CPU-03 | D22: ='COMP. MÓD. 1.400 M³'!D21 -> LEVANTAMENTOS TOPOGRÁFICOS PRIMITIVOS | E22: ='COMP. MÓD. 1.400 M³'!E21 -> UND | F22: ='COMP. MÓD. 1.400 M³'!F21 -> 1 | G22: 200 | H22: 200 | I22: ='COMP. MÓD. 1.400 M³'!G21 -> 943.94 | J22: ='COMP. MÓD. 1.400 M³'!I21 -> 1146.88 | K22: 188788 | L22: 229376 | M22: 0.0476570411
B23: ='COMP. MÓD. 1.400 M³'!B22 -> 1.8 | C23: ='COMP. MÓD. 1.400 M³'!C22 -> CPU-03 | D23: ='COMP. MÓD. 1.400 M³'!D22 -> LEVANTAMENTOS TOPOGRÁFICOS PARA AS BUILT | E23: ='COMP. MÓD. 1.400 M³'!E22 -> UND | F23: ='COMP. MÓD. 1.400 M³'!F22 -> 1 | G23: 200 | H23: 200 | I23: ='COMP. MÓD. 1.400 M³'!G22 -> 943.94 | J23: ='COMP. MÓD. 1.400 M³'!I22 -> 1146.88 | K23: 188788 | L23: 229376 | M23: 0.0476570411
B24: ='COMP. MÓD. 1.400 M³'!B23 -> 1.9 | C24: ='COMP. MÓD. 1.400 M³'!C23 -> CPU-04 | D24: ='COMP. MÓD. 1.400 M³'!D23 -> VEÍCULO LEVE 53 KW (SEM MOTORISTA) COM COMBUSTÍVEL INCLUSO | E24: ='COMP. MÓD. 1.400 M³'!E23 -> UND x MÊS | F24: ='COMP. MÓD. 1.400 M³'!F23 -> 0.08 | G24: 200 | H24: 16 | I24: ='COMP. MÓD. 1.400 M³'!G23 -> 5433.81 | J24: ='COMP. MÓD. 1.400 M³'!I23 -> 6602.07 | K24: 86940.96 | L24: 105633.12 | M24: 0.02194720434
B25: ='COMP. MÓD. 1.400 M³'!B24 -> 1.10 | C25: ='COMP. MÓD. 1.400 M³'!C24 -> CPU-05 | D25: ='COMP. MÓD. 1.400 M³'!D24 -> DIÁRIA PARA VIAGEM COM HOSPEDAGEM | E25: ='COMP. MÓD. 1.400 M³'!E24 -> DIÁRIA | F25: ='COMP. MÓD. 1.400 M³'!F24 -> 2.56 | G25: 200 | H25: 512 | I25: ='COMP. MÓD. 1.400 M³'!G24 -> 383.68 | J25: ='COMP. MÓD. 1.400 M³'!I24 -> 466.17 | K25: 196444.16 | L25: 238679.04 | M25: 0.04958991708
B26: ='COMP. MÓD. 1.400 M³'!B25 -> 1.11 | C26: ='COMP. MÓD. 1.400 M³'!C25 -> CPU-06 | D26: ='COMP. MÓD. 1.400 M³'!D25 -> DIÁRIA PARA VIAGEM SEM HOSPEDAGEM | E26: ='COMP. MÓD. 1.400 M³'!E25 -> DIÁRIA | F26: ='COMP. MÓD. 1.400 M³'!F25 -> 0.64 | G26: 200 | H26: 128 | I26: ='COMP. MÓD. 1.400 M³'!G25 -> 109.21 | J26: ='COMP. MÓD. 1.400 M³'!I25 -> 132.69 | K26: 13978.88 | L26: 16984.32 | M26: 0.003528801777
E27: TOTAL DO SUBITEM 1 | K27: =SUM(K16:K26) -> 1081891.68 | L27: =SUM(L16:L26) -> 1313855.84 | M27: 0.272977477
B28: 2 | C28: CONSTRUÇÃO DE BACIA DE CAPTAÇÃO E ARMAZENAMENTO DE ÁGUA, COM CAPACIDADE MÍNIMA DE ARMAZENAMENTO DE 1.000 M³ | E28: UND | F28: QUANTIDADE POR MÓDULO | G28: QUANTIDADE DE MÓDULOS | H28: QUANTIDADE | I28: CUSTO UNITÁRIO | J28: PREÇO UNITÁRIO | K28: CUSTO TOTAL | L28: PREÇO TOTAL | M28: %
B29: 2.1 | C29: ='COMP. MÓD. 1.400 M³'!C28 -> CODEVASF (adaptado de SICRO 5502985) | D29: ='COMP. MÓD. 1.400 M³'!D28 -> LIMPEZA MECANIZADA DA CAMADA VEGETAL COM RETROESCAVADEIRA DE PNEUS COM CAPACIDADE DE 0,75 M³ - 58 KW | E29: ='COMPOSIÇÕES - SICRO-SINAPI'!I40 -> M² | F29: ='COMP. MÓD. 1.400 M³'!F28 -> 3600 | G29: =$G$16 -> 200 | H29: =TRUNC((F29*G29),2) -> 720000 | I29: ='COMP. MÓD. 1.400 M³'!G28 -> 0.49 | J29: ='COMP. MÓD. 1.400 M³'!I28 -> 0.59 | K29: =TRUNC(F29*G29*I29,2) -> 352800 | L29: =TRUNC(F29*G29*J29,2) -> 424800 | M29: =((L29/$L$34)) -> 0.08825993592
B30: 2.2 | C30: ='COMP. MÓD. 1.400 M³'!C29 -> CODEVASF (adaptado de SICRO 4413942) | D30: ='COMP. MÓD. 1.400 M³'!D29 -> ESPALHAMENTO DE MATERIAL COM RETROESCAVADEIRA DE PNEUS COM CAPACIDADE DE 0,76 M³ - 58 KW | E30: ='COMPOSIÇÕES - SICRO-SINAPI'!I69 -> M³ | F30: ='COMP. MÓD. 1.400 M³'!F29 -> 1400 | G30: =$G$16 -> 200 | H30: =TRUNC((F30*G30),2) -> 280000 | I30: ='COMP. MÓD. 1.400 M³'!G29 -> 1.77 | J30: ='COMP. MÓD. 1.400 M³'!I29 -> 2.15 | K30: =TRUNC(F30*G30*I30,2) -> 495600 | L30: =TRUNC(F30*G30*J30,2) -> 602000 | M30: =((L30/$L$34)) -> 0.1250764629
B31: 2.3 | C31: ='COMP. MÓD. 1.400 M³'!C30 -> CODEVASF (Adaptado de SICRO 5501706) | D31: ='COMP. MÓD. 1.400 M³'!D30 -> ESCAVAÇÃO MECÂNICA COM RETROESCAVADEIRA (OU EQUIPAMENTO SUPERIOR) EM MATERIAL DE ESCAVAÇÃO DE 1ª CATEGORIA | E31: ='COMPOSIÇÕES - SICRO-SINAPI'!I11 -> M³ | F31: ='COMP. MÓD. 1.400 M³'!F30 -> 1400 | G31: =$G$16 -> 200 | H31: =TRUNC((F31*G31),2) -> 280000 | I31: ='COMP. MÓD. 1.400 M³'!G30 -> 7.27 | J31: ='COMP. MÓD. 1.400 M³'!I30 -> 8.83 | K31: =TRUNC(F31*G31*I31,2) -> 2035600 | L31: =TRUNC(F31*G31*J31,2) -> 2472400 | M31: =((L31/$L$34)) -> 0.5136861242
E32: TOTAL DO SUBITEM 2 | K32: =SUM(K29:K31) -> 2884000 | L32: =SUM(L29:L31) -> 3499200 | M32: =((L32/$L$34)) -> 0.727022523
B34: TOTAL GERAL DOS SERVIÇOS A SEREM CONTRATADOS: | L34: =ROUND((SUM(L27,L32)),4) -> 4813055.84 | M34: =((L34/$L$34)) -> 1

Sheet PLANILHA GLOBAL_em branco
D2: MINISTÉRIO DA INTEGRAÇÃO E DO DESENVOLVIMENTO REGIONAL - MIDR | I2: PLANILHA ORÇAMENTÁRIA DE EXECUÇÃO - GLOBAL
D3: COMPANHIA DE DESENVOLVIMENTO DOS VALES DO SÃO FRANCISCO E DO PARNAÍBA
D4: 2ª SUPERINTENDÊNCIA REGIONAL - BOM JESUS DA LAPA/BA.
D5: GERÊNCIA DE INFRAESTRUTURA - 2ª/GRD
B7: OBJETO: EXECUÇÃO DE SERVIÇOS DE ESCAVAÇÃO EM SOLO DE 1ª CATEGORIA, OBJETIVANDO À IMPLANTAÇÃO DE RESERVATÓRIOS PARA ACÚMULO DE ÁGUA EM COMUNIDADES DE CARÁTER RURAL EM DIVERSOS MUNICÍPIOS DO ESTADO DA BAHIA, NA ÁREA DE ATUAÇÃO DA 2ª SR DA CODEVASF.
B11: ANEXO 5 - PLANILHA DE CUSTOS E PREÇOS DA PROPONENTE
B13: ID | C13: DISCRIMINAÇÃO DOS SERVIÇOS | E13: UND | F13: QUANTIDADE POR MÓDULO | G13: QUANTIDADE DE MÓDULOS | H13: QUANTIDADE | I13: CUSTO UNITÁRIO | J13: PREÇO UNITÁRIO | K13: CUSTO TOTAL | L13: PREÇO TOTAL | M13: %
B15: 1 | C15: SERVIÇOS AUXILIARES | M15: %
B16: ='COMP. MÓD. 1.400 M³'!B15 -> 1.1 | C16: ='COMP. MÓD. 1.400 M³'!C15 -> SICRO 5914639 | D16: ='COMP. MÓD. 1.400 M³'!D15 -> TRANSPORTE DE EQUIPAMENTOS EM RODOVIA COM REVESTIMENTO PRIMÁRIO - MOBILIZAÇÃO | E16: ='COMP. MÓD. 1.400 M³'!E15 -> TON x KM | F16: ='COMP. MÓD. 1.400 M³'!F15 -> 235.8 | G16: =25*8 -> 200 | H16: =TRUNC((F16*G16),2) -> 47160
B17: ='COMP. MÓD. 1.400 M³'!B16 -> 1.2 | C17: ='COMP. MÓD. 1.400 M³'!C16 -> SICRO 5914640 | D17: ='COMP. MÓD. 1.400 M³'!D16 -> TRANSPORTE DE EQUIPAMENTOS EM RODOVIA PAVIMENTADA - MOBILIZAÇÃO | E17: ='COMP. MÓD. 1.400 M³'!E16 -> TON x KM | F17: ='COMP. MÓD. 1.400 M³'!F16 -> 314.4 | G17: =$G$16 -> 200 | H17: 62880
B18: ='COMP. MÓD. 1.400 M³'!B17 -> 1.3 | C18: ='COMP. MÓD. 1.400 M³'!C17 -> CPU-01 | D18: ='COMP. MÓD. 1.400 M³'!D17 -> ADMINISTRAÇÃO LOCAL | E18: ='COMP. MÓD. 1.400 M³'!E17 -> % | F18: 0.005 | G18: 200 | H18: 1
B19: ='COMP. MÓD. 1.400 M³'!B18 -> 1.4 | C19: ='COMP. MÓD. 1.400 M³'!C18 -> CPU-02 | D19: ='COMP. MÓD. 1.400 M³'!D18 -> PLACA DE OBRA EM CHAPA DE AÇO GALVANIZADO (3,20 M x 1,60 M) | E19: ='COMP. MÓD. 1.400 M³'!E18 -> M² | F19: ='COMP. MÓD. 1.400 M³'!F18 -> 0.64 | G19: 200 | H19: 128
B20: ='COMP. MÓD. 1.400 M³'!B19 -> 1.5 | C20: ='COMP. MÓD. 1.400 M³'!C19 -> SICRO 5914639 | D20: ='COMP. MÓD. 1.400 M³'!D19 -> TRANSPORTE DE EQUIPAMENTOS EM RODOVIA COM REVESTIMENTO PRIMÁRIO - DESMOBILIZAÇÃO | E20: ='COMP. MÓD. 1.400 M³'!E19 -> TON x KM | F20: ='COMP. MÓD. 1.400 M³'!F19 -> 235.8 | G20: 200 | H20: 47160
B21: ='COMP. MÓD. 1.400 M³'!B20 -> 1.6 | C21: ='COMP. MÓD. 1.400 M³'!C20 -> SICRO 5914640 | D21: ='COMP. MÓD. 1.400 M³'!D20 -> TRANSPORTE DE EQUIPAMENTOS EM RODOVIA PAVIMENTADA - DESMOBILIZAÇÃO | E21: ='COMP. MÓD. 1.400 M³'!E20 -> TON x KM | F21: ='COMP. MÓD. 1.400 M³'!F20 -> 314.4 | G21: 200 | H21: 62880
B22: ='COMP. MÓD. 1.400 M³'!B21 -> 1.7 | C22: ='COMP. MÓD. 1.400 M³'!C21 -> CPU-03 | D22: ='COMP. MÓD. 1.400 M³'!D21 -> LEVANTAMENTOS TOPOGRÁFICOS PRIMITIVOS | E22: ='COMP. MÓD. 1.400 M³'!E21 -> UND | F22: ='COMP. MÓD. 1.400 M³'!F21 -> 1 | G22: 200 | H22: 200
B23: ='COMP. MÓD. 1.400 M³'!B22 -> 1.8 | C23: ='COMP. MÓD. 1.400 M³'!C22 -> CPU-03 | D23: ='COMP. MÓD. 1.400 M³'!D22 -> LEVANTAMENTOS TOPOGRÁFICOS PARA AS BUILT | E23: ='COMP. MÓD. 1.400 M³'!E22 -> UND | F23: ='COMP. MÓD. 1.400 M³'!F22 -> 1 | G23: 200 | H23: 200
B24: ='COMP. MÓD. 1.400 M³'!B23 -> 1.9 | C24: ='COMP. MÓD. 1.400 M³'!C23 -> CPU-04 | D24: ='COMP. MÓD. 1.400 M³'!D23 -> VEÍCULO LEVE 53 KW (SEM MOTORISTA) COM COMBUSTÍVEL INCLUSO | E24: ='COMP. MÓD. 1.400 M³'!E23 -> UND x MÊS | F24: ='COMP. MÓD. 1.400 M³'!F23 -> 0.08 | G24: 200 | H24: 16
B25: ='COMP. MÓD. 1.400 M³'!B24 -> 1.10 | C25: ='COMP. MÓD. 1.400 M³'!C24 -> CPU-05 | D25: ='COMP. MÓD. 1.400 M³'!D24 -> DIÁRIA PARA VIAGEM COM HOSPEDAGEM | E25: ='COMP. MÓD. 1.400 M³'!E24 -> DIÁRIA | F25: ='COMP. MÓD. 1.400 M³'!F24 -> 2.56 | G25: 200 | H25: 512
B26: ='COMP. MÓD. 1.400 M³'!B25 -> 1.11 | C26: ='COMP. MÓD. 1.400 M³'!C25 -> CPU-06 | D26: ='COMP. MÓD. 1.400 M³'!D25 -> DIÁRIA PARA VIAGEM SEM HOSPEDAGEM | E26: ='COMP. MÓD. 1.400 M³'!E25 -> DIÁRIA | F26: ='COMP. MÓD. 1.400 M³'!F25 -> 0.64 | G26: 200 | H26: 128
E27: TOTAL DO SUBITEM 1
B28: 2 | C28: CONSTRUÇÃO DE BACIA DE CAPTAÇÃO E ARMAZENAMENTO DE ÁGUA, COM CAPACIDADE MÍNIMA DE ARMAZENAMENTO DE 1.000 M³ | E28: UND | F28: QUANTIDADE POR MÓDULO | G28: QUANTIDADE DE MÓDULOS | H28: QUANTIDADE | I28: CUSTO UNITÁRIO | J28: PREÇO UNITÁRIO | K28: CUSTO TOTAL | L28: PREÇO TOTAL | M28: %
B29: 2.1 | C29: ='COMP. MÓD. 1.400 M³'!C28 -> CODEVASF (adaptado de SICRO 5502985) | D29: ='COMP. MÓD. 1.400 M³'!D28 -> LIMPEZA MECANIZADA DA CAMADA VEGETAL COM RETROESCAVADEIRA DE PNEUS COM CAPACIDADE DE 0,75 M³ - 58 KW | E29: ='COMPOSIÇÕES - SICRO-SINAPI'!I40 -> M² | F29: ='COMP. MÓD. 1.400 M³'!F28 -> 3600 | G29: =$G$16 -> 200 | H29: =TRUNC((F29*G29),2) -> 720000
B30: 2.2 | C30: ='COMP. MÓD. 1.400 M³'!C29 -> CODEVASF (adaptado de SICRO 4413942) | D30: ='COMP. MÓD. 1.400 M³'!D29 -> ESPALHAMENTO DE MATERIAL COM RETROESCAVADEIRA DE PNEUS COM CAPACIDADE DE 0,76 M³ - 58 KW | E30: ='COMPOSIÇÕES - SICRO-SINAPI'!I69 -> M³ | F30: ='COMP. MÓD. 1.400 M³'!F29 -> 1400 | G30: =$G$16 -> 200 | H30: =TRUNC((F30*G30),2) -> 280000
B31: 2.3 | C31: ='COMP. MÓD. 1.400 M³'!C30 -> CODEVASF (Adaptado de SICRO 5501706) | D31: ='COMP. MÓD. 1.400 M³'!D30 -> ESCAVAÇÃO MECÂNICA COM RETROESCAVADEIRA (OU EQUIPAMENTO SUPERIOR) EM MATERIAL DE ESCAVAÇÃO DE 1ª CATEGORIA | E31: ='COMPOSIÇÕES - SICRO-SINAPI'!I11 -> M³ | F31: ='COMP. MÓD. 1.400 M³'!F30 -> 1400 | G31: =$G$16 -> 200 | H31: =TRUNC((F31*G31),2) -> 280000
E32: TOTAL DO SUBITEM 2
B34: TOTAL GERAL DOS SERVIÇOS A SEREM CONTRATADOS:

Sheet CRONO FISICO-FINANCEIRO
B1: OBJETO: EXECUÇÃO DE SERVIÇOS DE ESCAVAÇÃO EM SOLO DE 1ª CATEGORIA, OBJETIVANDO À IMPLANTAÇÃO DE RESERVATÓRIOS PARA ACÚMULO DE ÁGUA EM COMUNIDADES DE CARÁTER RURAL EM DIVERSOS MUNICÍPIOS DO ESTADO DA BAHIA, NA ÁREA DE ATUAÇÃO DA 2ª SR DA CODEVASF.
B3: CRONOGRAMA DE EXECUÇÃO FÍSICO-FINANCEIRA
B5: 1 | C5: SERVIÇOS AUXILIARES | E5: VALOR TOTAL | F5: MÊS 1 | G5: MÊS 2 | H5: MÊS 3 | I5: MÊS 4 | J5: MÊS 5 | K5: MÊS 6 | L5: MÊS 7 | M5: MÊS 8 | N5: MÊS 9 | O5: MÊS 10 | P5: MÊS 11 | Q5: MÊS 12 | R5: TOTAL
B6: ='PLANILHA GLOBAL'!B16 -> 1.1 | C6: ='COMPOSIÇÕES - SICRO-SINAPI'!A99 -> SICRO 5914639 | D6: ='PLANILHA GLOBAL'!D16 -> TRANSPORTE DE EQUIPAMENTOS EM RODOVIA COM REVESTIMENTO PRIMÁRIO - MOBILIZAÇÃO | E6: ='PLANILHA GLOBAL'!L16 -> 40086 | F6: =$E$6*F7 -> 0 | G6: =$E$6*G7 -> 8017.2 | H6: 0 | I6: 8017.2 | J6: 0 | K6: 8017.2 | L6: 0 | M6: 8017.2 | N6: 0 | O6: 8017.2 | P6: 0 | Q6: 0 | R6: =SUM(F6:Q6) -> 40086
E7: % | F7: 0 | G7: 0.2 | H7: 0 | I7: 0.2 | J7: 0 | K7: 0.2 | L7: 0 | M7: 0.2 | N7: 0 | O7: 0.2 | P7: 0 | Q7: 0 | R7: 1
B8: ='PLANILHA GLOBAL'!B17 -> 1.2 | C8: ='COMPOSIÇÕES - SICRO-SINAPI'!A127 -> SICRO 5914640 | D8: ='PLANILHA GLOBAL'!D17 -> TRANSPORTE DE EQUIPAMENTOS EM RODOVIA PAVIMENTADA - MOBILIZAÇÃO | E8: ='PLANILHA GLOBAL'!L17 -> 44016 | F8: =$E$8*F9 -> 0 | G8: =$E$8*G9 -> 8803.2 | H8: 0 | I8: 8803.2 | J8: 0 | K8: 8803.2 | L8: 0 | M8: 8803.2 | N8: 0 | O8: 8803.2 | P8: 0 | Q8: 0 | R8: 44016
E9: % | F9: 0 | G9: 0.2 | H9: 0 | I9: 0.2 | J9: 0 | K9: 0.2 | L9: 0 | M9: 0.2 | N9: 0 | O9: 0.2 | P9: 0 | Q9: 0 | R9: 1
B10: ='PLANILHA GLOBAL'!B18 -> 1.3 | C10: ='COMPOSIÇÕES MISTAS'!A14 -> CPU-01 | D10: ='PLANILHA GLOBAL'!D18 -> ADMINISTRAÇÃO LOCAL | E10: ='PLANILHA GLOBAL'!L18 -> 246100 | F10: =$E$10*F11 -> 1230.5 | G10: =$E$10*G11 -> 9745.56 | H10: 37554.86 | I10: 11886.63 | J10: 37554.86 | K10: 11886.63 | L10: 37554.86 | M10: 11886.63 | N10: 37554.86 | O10: 10803.79 | P10: 37554.86 | Q10: 885.96 | R10: 246100
E11: % | F11: 0.005 | G11: 0.0396 | H11: 0.1526 | I11: 0.0483 | J11: 0.1526 | K11: 0.0483 | L11: 0.1526 | M11: 0.0483 | N11: 0.1526 | O11: 0.0439 | P11: 0.1526 | Q11: 0.0036 | R11: 1
B12: ='PLANILHA GLOBAL'!B19 -> 1.4 | C12: ='COMPOSIÇÕES MISTAS'!A21 -> CPU-02 | D12: ='PLANILHA GLOBAL'!D19 -> PLACA DE OBRA EM CHAPA DE AÇO GALVANIZADO (3,20 M x 1,60 M) | E12: ='PLANILHA GLOBAL'!L19 -> 79503.36 | F12: =$E$12*F13 -> 0 | G12: =$E$12*G13 -> 19875.84 | H12: 0 | I12: 19875.84 | J12: 0 | K12: 19875.84 | L12: 0 | M12: 19875.84 | N12: 0 | O12: 0 | P12: 0 | Q12: 0 | R12: 79503.36
E13: % | F13: 0 | G13: 0.25 | H13: 0 | I13: 0.25 | J13: 0 | K13: 0.25 | L13: 0 | M13: 0.25 | N13: 0 | O13: 0 | P13: 0 | Q13: 0 | R13: 1
B14: ='PLANILHA GLOBAL'!B20 -> 1.5 | C14: ='COMPOSIÇÕES - SICRO-SINAPI'!A99 -> SICRO 5914639 | D14: ='PLANILHA GLOBAL'!D20 -> TRANSPORTE DE EQUIPAMENTOS EM RODOVIA COM REVESTIMENTO PRIMÁRIO - DESMOBILIZAÇÃO | E14: ='PLANILHA GLOBAL'!L20 -> 40086 | F14: =$E$14*F15 -> 0 | G14: =$E$14*G15 -> 0 | H14: 0 | I14: 8017.2 | J14: 0 | K14: 8017.2 | L14: 0 | M14: 8017.2 | N14: 0 | O14: 8017.2 | P14: 0 | Q14: 8017.2 | R14: 40086
E15: % | F15: 0 | G15: 0 | H15: 0 | I15: 0.2 | J15: 0 | K15: 0.2 | L15: 0 | M15: 0.2 | N15: 0 | O15: 0.2 | P15: 0 | Q15: 0.2 | R15: 1
B16: ='PLANILHA GLOBAL'!B21 -> 1.6 | C16: ='COMPOSIÇÕES - SICRO-SINAPI'!A127 -> SICRO 5914640 | D16: ='PLANILHA GLOBAL'!D21 -> TRANSPORTE DE EQUIPAMENTOS EM RODOVIA PAVIMENTADA - DESMOBILIZAÇÃO | E16: ='PLANILHA GLOBAL'!L21 -> 44016 | F16: =$E$16*F17 -> 0 | G16: =$E$16*G17 -> 0 | H16: 0 | I16: 8803.2 | J16: 0 | K16: 8803.2 | L16: 0 | M16: 8803.2 | N16: 0 | O16: 8803.2 | P16: 0 | Q16: 8803.2 | R16: 44016
E17: % | F17: 0 | G17: 0 | H17: 0 | I17: 0.2 | J17: 0 | K17: 0.2 | L17: 0 | M17: 0.2 | N17: 0 | O17: 0.2 | P17: 0 | Q17: 0.2 | R17: 1
B18: ='PLANILHA GLOBAL'!B22 -> 1.7 | C18: ='COMPOSIÇÕES - SICRO-SINAPI'!A129 -> 0 | D18: ='PLANILHA GLOBAL'!D22 -> LEVANTAMENTOS TOPOGRÁFICOS PRIMITIVOS | E18: ='PLANILHA GLOBAL'!L22 -> 229376 | F18: =$E$18*F19 -> 22937.6 | G18: 22937.6 | H18: 22937.6 | I18: 22937.6 | J18: 22937.6 | K18: 22937.6 | L18: 22937.6 | M18: 22937.6 | N18: 22937.6 | O18: 22937.6 | P18: 0 | Q18: 0 | R18: =SUM(F18:Q18) -> 229376
E19: % | F19: 0.1 | G19: 0.1 | H19: 0.1 | I19: 0.1 | J19: 0.1 | K19: 0.1 | L19: 0.1 | M19: 0.1 | N19: 0.1 | O19: 0.1 | P19: 0 | Q19: 0 | R19: 1
B20: ='PLANILHA GLOBAL'!B23 -> 1.8 | C20: ='COMPOSIÇÕES - SICRO-SINAPI'!A131 -> 0 | D20: ='PLANILHA GLOBAL'!D23 -> LEVANTAMENTOS TOPOGRÁFICOS PARA AS BUILT | E20: ='PLANILHA GLOBAL'!L23 -> 229376 | F20: =$E$20*F21 -> 0 | G20: 0 | H20: 22937.6 | I20: 22937.6 | J20: 22937.6 | K20: 22937.6 | L20: 22937.6 | M20: 22937.6 | N20: 22937.6 | O20: 22937.6 | P20: 45875.2 | Q20: 0 | R20: =SUM(F20:Q20) -> 229376
E21: % | F21: 0 | G21: 0 | H21: 0.1 | I21: 0.1 | J21: 0.1 | K21: 0.1 | L21: 0.1 | M21: 0.1 | N21: 0.1 | O21: 0.1 | P21: 0.2 | Q21: 0 | R21: 1
B22: ='PLANILHA GLOBAL'!B24 -> 1.9 | C22: ='COMPOSIÇÕES - SICRO-SINAPI'!A133 -> 0 | D22: ='PLANILHA GLOBAL'!D24 -> VEÍCULO LEVE 53 KW (SEM MOTORISTA) COM COMBUSTÍVEL INCLUSO | E22: ='PLANILHA GLOBAL'!L24 -> 105633.12 | F22: =$E$22*F23 -> 0 | G22: 10563.312 | H22: 10563.312 | I22: 10563.312 | J22: 10563.312 | K22: 10563.312 | L22: 10563.312 | M22: 10563.312 | N22: 10563.312 | O22: 10563.312 | P22: 10563.312 | Q22: 0 | R22: 105633.12
E23: % | F23: 0 | G23: 0.1 | H23: 0.1 | I23: 0.1 | J23: 0.1 | K23: 0.1 | L23: 0.1 | M23: 0.1 | N23: 0.1 | O23: 0.1 | P23: 0.1 | Q23: 0 | R23: 1
B24: ='PLANILHA GLOBAL'!B25 -> 1.10 | C24: ='COMPOSIÇÕES - SICRO-SINAPI'!A135 -> 0 | D24: ='PLANILHA GLOBAL'!D25 -> DIÁRIA PARA VIAGEM COM HOSPEDAGEM | E24: ='PLANILHA GLOBAL'!L25 -> 238679.04 | F24: =$E$24*F25 -> 0 | G24: 23867.904 | H24: 23867.904 | I24: 23867.904 | J24: 23867.904 | K24: 23867.904 | L24: 23867.904 | M24: 23867.904 | N24: 23867.904 | O24: 23867.904 | P24: 23867.904 | Q24: 0 | R24: 238679.04
E25: % | F25: 0 | G25: 0.1 | H25: 0.1 | I25: 0.1 | J25: 0.1 | K25: 0.1 | L25: 0.1 | M25: 0.1 | N25: 0.1 | O25: 0.1 | P25: 0.1 | Q25: 0 | R25: 1
B26: ='PLANILHA GLOBAL'!B26 -> 1.11 | C26: ='COMPOSIÇÕES - SICRO-SINAPI'!A137 -> 0 | D26: ='PLANILHA GLOBAL'!D26 -> DIÁRIA PARA VIAGEM SEM HOSPEDAGEM | E26: ='PLANILHA GLOBAL'!L26 -> 16984.32 | F26: =$E$26*F27 -> 0 | G26: 1698.432 | H26: 1698.432 | I26: 1698.432 | J26: 1698.432 | K26: 1698.432 | L26: 1698.432 | M26: 1698.432 | N26: 1698.432 | O26: 1698.432 | P26: 1698.432 | Q26: 0 | R26: 16984.32
E27: % | F27: 0 | G27: 0.1 | H27: 0.1 | I27: 0.1 | J27: 0.1 | K27: 0.1 | L27: 0.1 | M27: 0.1 | N27: 0.1 | O27: 0.1 | P27: 0.1 | Q27: 0 | R27: 1
Q28: SUBTOTAL | R28: =SUM(R6,R8,R10,R12,R14,R16,R18,R20,R22,R24,R26) -> 1313855.84
B29: 2 | C29: CONSTRUÇÃO DE BACIA DE CAPTAÇÃO E ARMAZENAMENTO DE ÁGUA, COM CAPACIDADE MÍNIMA DE ARMAZENAMENTO DE 1.400 M³. | E29: VALOR TOTAL | F29: MÊS 1 | G29: MÊS 2 | H29: MÊS 3 | I29: MÊS 4 | J29: MÊS 5 | K29: MÊS 6 | L29: MÊS 7 | M29: MÊS 8 | N29: MÊS 9 | O29: MÊS 10 | P29: MÊS 11 | Q29: MÊS 12 | R29: TOTAL
B30: ='PLANILHA GLOBAL'!B29 -> 2.1 | C30: ='COMPOSIÇÕES - SICRO-SINAPI'!A41 -> CODEVASF (adaptado de SICRO 5502985) | D30: ='PLANILHA GLOBAL'!D29 -> LIMPEZA MECANIZADA DA CAMADA VEGETAL COM RETROESCAVADEIRA DE PNEUS COM CAPACIDADE DE 0,75 M³ - 58 KW | E30: ='PLANILHA GLOBAL'!L29 -> 424800 | F30: =$E$30*F31 -> 0 | G30: =$E$30*G31 -> 84960 | H30: 0 | I30: 84960 | J30: 0 | K30: 84960 | L30: 0 | M30: 84960 | N30: 0 | O30: 84960 | P30: 0 | Q30: 0 | R30: =SUM(F30:Q30) -> 424800
E31: % | F31: 0 | G31: 0.2 | H31: 0 | I31: 0.2 | J31: 0 | K31: 0.2 | L31: 0 | M31: 0.2 | N31: 0 | O31: 0.2 | P31: 0 | Q31: 0 | R31: 1
B32: ='PLANILHA GLOBAL'!B30 -> 2.2 | C32: ='COMPOSIÇÕES - SICRO-SINAPI'!A70 -> CODEVASF (adaptado de SICRO 4413942) | D32: ='PLANILHA GLOBAL'!D30 -> ESPALHAMENTO DE MATERIAL COM RETROESCAVADEIRA DE PNEUS COM CAPACIDADE DE 0,76 M³ - 58 KW | E32: ='PLANILHA GLOBAL'!L30 -> 602000 | F32: =$E$32*F33 -> 0 | G32: =$E$32*G33 -> 0 | H32: 120400 | I32: 0 | J32: 120400 | K32: 0 | L32: 120400 | M32: 0 | N32: 120400 | O32: 0 | P32: 120400 | Q32: 0 | R32: 602000
E33: % | F33: 0 | G33: 0 | H33: 0.2 | I33: 0 | J33: 0.2 | K33: 0 | L33: 0.2 | M33: 0 | N33: 0.2 | O33: 0 | P33: 0.2 | Q33: 0 | R33: 1
B34: ='PLANILHA GLOBAL'!B31 -> 2.3 | C34: ='COMPOSIÇÕES - SICRO-SINAPI'!A12 -> CODEVASF (Adaptado de SICRO 5501706) | D34: ='PLANILHA GLOBAL'!D31 -> ESCAVAÇÃO MECÂNICA COM RETROESCAVADEIRA (OU EQUIPAMENTO SUPERIOR) EM MATERIAL DE ESCAVAÇÃO DE 1ª CATEGORIA | E34: ='PLANILHA GLOBAL'!L31 -> 2472400 | F34: =$E$34*F35 -> 0 | G34: =$E$34*G35 -> 0 | H34: 494480 | I34: 0 | J34: 494480 | K34: 0 | L34: 494480 | M34: 0 | N34: 494480 | O34: 0 | P34: 494480 | Q34: 0 | R34: 2472400
E35: % | F35: 0 | G35: 0 | H35: 0.2 | I35: 0 | J35: 0.2 | K35: 0 | L35: 0.2 | M35: 0 | N35: 0.2 | O35: 0 | P35: 0.2 | Q35: 0 | R35: 1
Q36: SUBTOTAL | R36: =SUM(R30,R32,R34) -> 3499200
B37: TOTAL GERAL | E37: =SUM(E6,E8,E10,E12,E14,E16,E18,E20,E22,E24,E26,E30,E32,E34) -> 4813055.84 | Q37: TOTAL GERAL | R37: =SUM(R28,R36) -> 4813055.84
B40: TOTAL A SER EXECUTADO NO MÊS | F40: =F6+F8+F10+F12+F14+F16+F18+F20+F22+F24+F26+F30+F32+F34 -> 24168.1 | G40: =G6+G8+G10+G12+G14+G16+G18+G20+G22+G24+G26+G30+G32+G34 -> 190469.048 | H40: 734439.708 | I40: 232368.118 | J40: 734439.708 | K40: 232368.118 | L40: 734439.708 | M40: 232368.118 | N40: 734439.708 | O40: 211409.438 | P40: 734439.708 | Q40: 17706.36 | R40: =SUM(F40:Q40) -> 4813055.84
B41: PERCENTUAL DE EXECUÇÃO NO MÊS | F41: =F40/$R$37 -> 0.005021362894 | G41: =G40/$R$37 -> 0.0395734133 | H41: 0.152593224 | I41: 0.04827870811 | J41: 0.152593224 | K41: 0.04827870811 | L41: 0.152593224 | M41: 0.04827870811 | N41: 0.152593224 | O41: 0.04392416066 | P41: 0.152593224 | Q41: 0.003678818736 | R41: =SUM(F41:Q41) -> 1
B42: TOTAL ACUMULADO | F42: =F40 -> 24168.1 | G42: =F42+G40 -> 214637.148 | H42: =G42+H40 -> 949076.856 | I42: 1181444.974 | J42: 1915884.682 | K42: 2148252.8 | L42: 2882692.508 | M42: 3115060.626 | N42: 3849500.334 | O42: 4060909.772 | P42: 4795349.48 | Q42: 4813055.84
B43: PERCENTUAL DE EXECUÇÃO ACUMULADO | F43: =F42/$R$37 -> 0.005021362894 | G43: =G42/$R$37 -> 0.0445947762 | H43: 0.1971880002 | I43: 0.2454667083 | J43: 0.3980599323 | K43: 0.4463386404 | L43: 0.5989318645 | M43: 0.6472105726 | N43: 0.7998037966 | O43: 0.8437279572 | P43: 0.9963211813 | Q43: 1

Sheet COMP. MÓD. 1.400 M³
B2: MINISTÉRIO DA INTEGRAÇÃO E DO DESENVOLVIMENTO REGIONAL - MIDR | I2: PLANILHA ORÇAMENTÁRIA PARA MÓDULO MÍNIMO
B3: COMPANHIA DE DESENVOLVIMENTO DOS VALES DO SÃO FRANCISCO E DO PARNAÍBA
B4: 2ª SUPERINTENDÊNCIA REGIONAL - BOM JESUS DA LAPA/BA.
B5: GERÊNCIA DE INFRAESTRUTURA - 2ª/GRD
B7: OBJETO: EXECUÇÃO DE SERVIÇOS DE ESCAVAÇÃO EM SOLO DE 1ª CATEGORIA, OBJETIVANDO À IMPLANTAÇÃO DE RESERVATÓRIOS PARA ACÚMULO DE ÁGUA EM COMUNIDADES DE CARÁTER RURAL EM DIVERSOS MUNICÍPIOS DO ESTADO DA BAHIA, NA ÁREA DE ATUAÇÃO DA 2ª SR DA CODEVASF.
B9: MESES DE REFERÊNCIA: SINAPI-BA: AGOSTO/2025; SICRO-BA: JULHO/2025; TC DNIT: JULHO/2025. BDI: 21,50%. ENCARGOS SOCIAIS: 115,57% (HORISTA) E 71,29% (MENSALISTA).
B11: PLANILHA MÓDULO MINIMO PARA RESERVATÓRIO DE 1.400 M³ - SEM DESONERAÇÃO
B12: ITEM | C12: DISCRIMINAÇÃO DOS SERVIÇOS | E12: UND | F12: QUANTIDADE | G12: CUSTO UNITÁRIO | H12: CUSTO TOTAL | I12: PREÇO UNITÁRIO | J12: PREÇO TOTAL | K12: %
B14: 1 | C14: SERVIÇOS AUXILIARES | K14: %
B15: 1.1 | C15: ='COMPOSIÇÕES - SICRO-SINAPI'!A99 -> SICRO 5914639 | D15: TRANSPORTE DE EQUIPAMENTOS EM RODOVIA COM REVESTIMENTO PRIMÁRIO - MOBILIZAÇÃO | E15: ='COMPOSIÇÕES - SICRO-SINAPI'!I98 -> TON x KM | F15: =TRUNC(('MOBIL. REV. PRIMÁRIO'!D19*'MOBIL. REV. PRIMÁRIO'!I24),2) -> 235.8 | G15: ='COMPOSIÇÕES - SICRO-SINAPI'!I120 -> 0.7 | H15: =TRUNC(F15*G15,2) -> 165.06 | I15: ='COMPOSIÇÕES - SICRO-SINAPI'!I121 -> 0.85 | J15: =TRUNC(F15*I15,2) -> 200.43 | K15: =((J15/$J$33)) -> 0.00832860314
B16: 1.2 | C16: ='COMPOSIÇÕES - SICRO-SINAPI'!A127 -> SICRO 5914640 | D16: TRANSPORTE DE EQUIPAMENTOS EM RODOVIA PAVIMENTADA - MOBILIZAÇÃO | E16: ='COMPOSIÇÕES - SICRO-SINAPI'!I126 -> TON x KM | F16: =TRUNC(('MOBIL. VIA ASFALTADA'!D19*'MOBIL. VIA ASFALTADA'!I24),2) -> 314.4 | G16: ='COMPOSIÇÕES - SICRO-SINAPI'!I148 -> 0.58 | H16: 182.35 | I16: ='COMPOSIÇÕES - SICRO-SINAPI'!I149 -> 0.7 | J16: 220.08 | K16: 0.00914513286
B17: 1.3 | C17: ='COMPOSIÇÕES MISTAS'!A14 -> CPU-01 | D17: ='COMPOSIÇÕES MISTAS'!D14 -> ADMINISTRAÇÃO LOCAL | E17: ='COMPOSIÇÕES MISTAS'!E14 -> % | F17: 1 | G17: ='COMPOSIÇÕES MISTAS'!H17 -> 1012.76 | H17: 1012.76 | I17: ='COMPOSIÇÕES MISTAS'!H19 -> 1230.5 | J17: 1230.5 | K17: 0.05113179745
B18: 1.4 | C18: ='COMPOSIÇÕES MISTAS'!A21 -> CPU-02 | D18: ='COMPOSIÇÕES MISTAS'!D21 -> PLACA DE OBRA EM CHAPA DE AÇO GALVANIZADO (3,20 M x 1,60 M) | E18: ='COMPOSIÇÕES MISTAS'!E21 -> M² | F18: =(3.2*1.6)/8 -> 0.64 | G18: ='COMPOSIÇÕES MISTAS'!H32 -> 511.21 | H18: 327.17 | I18: ='COMPOSIÇÕES MISTAS'!H34 -> 621.12 | J18: 397.51 | K18: 0.01651800147
B19: 1.5 | C19: ='COMPOSIÇÕES - SICRO-SINAPI'!A99 -> SICRO 5914639 | D19: TRANSPORTE DE EQUIPAMENTOS EM RODOVIA COM REVESTIMENTO PRIMÁRIO - DESMOBILIZAÇÃO | E19: ='COMPOSIÇÕES - SICRO-SINAPI'!I98 -> TON x KM | F19: =TRUNC(('MOBIL. REV. PRIMÁRIO'!D19*'MOBIL. REV. PRIMÁRIO'!I24),2) -> 235.8 | G19: ='COMPOSIÇÕES - SICRO-SINAPI'!I120 -> 0.7 | H19: 165.06 | I19: ='COMPOSIÇÕES - SICRO-SINAPI'!I121 -> 0.85 | J19: 200.43 | K19: 0.00832860314
B20: 1.6 | C20: ='COMPOSIÇÕES - SICRO-SINAPI'!A127 -> SICRO 5914640 | D20: TRANSPORTE DE EQUIPAMENTOS EM RODOVIA PAVIMENTADA - DESMOBILIZAÇÃO | E20: ='COMPOSIÇÕES - SICRO-SINAPI'!I126 -> TON x KM | F20: =TRUNC(('MOBIL. VIA ASFALTADA'!D19*'MOBIL. VIA ASFALTADA'!I24),2) -> 314.4 | G20: ='COMPOSIÇÕES - SICRO-SINAPI'!I148 -> 0.58 | H20: 182.35 | I20: ='COMPOSIÇÕES - SICRO-SINAPI'!I149 -> 0.7 | J20: 220.08 | K20: 0.00914513286
B21: 1.7 | C21: ='COMPOSIÇÕES MISTAS'!A36 -> CPU-03 | D21: LEVANTAMENTOS TOPOGRÁFICOS PRIMITIVOS | E21: ='COMPOSIÇÕES MISTAS'!E36 -> UND | F21: 1 | G21: ='COMPOSIÇÕES MISTAS'!H46 -> 943.94 | H21: 943.94 | I21: ='COMPOSIÇÕES MISTAS'!H48 -> 1146.88 | J21: 1146.88 | K21: 0.04765707913
B22: 1.8 | C22: ='COMPOSIÇÕES MISTAS'!A36 -> CPU-03 | D22: LEVANTAMENTOS TOPOGRÁFICOS PARA AS BUILT | E22: ='COMPOSIÇÕES MISTAS'!E36 -> UND | F22: 1 | G22: ='COMPOSIÇÕES MISTAS'!H46 -> 943.94 | H22: 943.94 | I22: ='COMPOSIÇÕES MISTAS'!H48 -> 1146.88 | J22: 1146.88 | K22: 0.04765707913
B23: 1.9 | C23: ='COMPOSIÇÕES MISTAS'!A50 -> CPU-04 | D23: ='COMPOSIÇÕES MISTAS'!D50 -> VEÍCULO LEVE 53 KW (SEM MOTORISTA) COM COMBUSTÍVEL INCLUSO | E23: ='COMPOSIÇÕES MISTAS'!E50 -> UND x MÊS | F23: =TRUNC((1/25)*2,2) -> 0.08 | G23: ='COMPOSIÇÕES MISTAS'!H54 -> 5433.81 | H23: 434.7 | I23: ='COMPOSIÇÕES MISTAS'!H56 -> 6602.07 | J23: 528.16 | K23: 0.02194698915
B24: 1.10 | C24: ='COMPOSIÇÕES MISTAS'!A58 -> CPU-05 | D24: ='COMPOSIÇÕES MISTAS'!D58 -> DIÁRIA PARA VIAGEM COM HOSPEDAGEM | E24: ='COMPOSIÇÕES MISTAS'!E58 -> DIÁRIA | F24: =TRUNC(((4*4*2*2)/25),2) -> 2.56 | G24: ='COMPOSIÇÕES MISTAS'!H61 -> 383.68 | H24: 982.22 | I24: ='COMPOSIÇÕES MISTAS'!H63 -> 466.17 | J24: =TRUNC(F24*I24,2) -> 1193.39 | K24: 0.04958974056
B25: 1.11 | C25: ='COMPOSIÇÕES MISTAS'!A66 -> CPU-06 | D25: ='COMPOSIÇÕES MISTAS'!D66 -> DIÁRIA PARA VIAGEM SEM HOSPEDAGEM | E25: ='COMPOSIÇÕES MISTAS'!E66 -> DIÁRIA | F25: =TRUNC(((4/25)*2*2),2) -> 0.64 | G25: ='COMPOSIÇÕES MISTAS'!H68 -> 109.21 | H25: 69.89 | I25: ='COMPOSIÇÕES MISTAS'!H70 -> 132.69 | J25: 84.92 | K25: 0.003528738106
E26: TOTAL DO ITEM 1 | J26: =SUM(J15:J25) -> 6569.26 | K26: 0.272976897
B27: 2 | C27: CONSTRUÇÃO DE TANQUE DE CAPTAÇÃO E ARMAZENAMENTO DE ÁGUA, COM CAPACIDADE MÍNIMA DE 1.400 M³ | K27: %
B28: 2.1 | C28: ='COMPOSIÇÕES - SICRO-SINAPI'!A41 -> CODEVASF (adaptado de SICRO 5502985) | D28: LIMPEZA MECANIZADA DA CAMADA VEGETAL COM RETROESCAVADEIRA DE PNEUS COM CAPACIDADE DE 0,75 M³ - 58 KW | E28: ='COMPOSIÇÕES - SICRO-SINAPI'!I40 -> M² | F28: =60*60 -> 3600 | G28: ='COMPOSIÇÕES - SICRO-SINAPI'!I63 -> 0.49 | H28: =TRUNC(F28*G28,2) -> 1764 | I28: ='COMPOSIÇÕES - SICRO-SINAPI'!I64 -> 0.59 | J28: =TRUNC(F28*I28,2) -> 2124 | K28: =((J28/$J$33)) -> 0.08826000633
B29: 2.2 | C29: ='COMPOSIÇÕES - SICRO-SINAPI'!A70 -> CODEVASF (adaptado de SICRO 4413942) | D29: ESPALHAMENTO DE MATERIAL COM RETROESCAVADEIRA DE PNEUS COM CAPACIDADE DE 0,76 M³ - 58 KW | E29: ='COMPOSIÇÕES - SICRO-SINAPI'!I69 -> M³ | F29: 1400 | G29: ='COMPOSIÇÕES - SICRO-SINAPI'!I92 -> 1.77 | H29: =TRUNC(F29*G29,2) -> 2478 | I29: ='COMPOSIÇÕES - SICRO-SINAPI'!I93 -> 2.15 | J29: =TRUNC(F29*I29,2) -> 3010 | K29: =((J29/$J$33)) -> 0.1250765626
B30: 2.3 | C30: ='COMPOSIÇÕES - SICRO-SINAPI'!A12 -> CODEVASF (Adaptado de SICRO 5501706) | D30: ESCAVAÇÃO MECÂNICA COM RETROESCAVADEIRA (OU EQUIPAMENTO SUPERIOR) EM MATERIAL DE ESCAVAÇÃO DE 1ª CATEGORIA | E30: ='COMPOSIÇÕES - SICRO-SINAPI'!I11 -> M³ | F30: 1400 | G30: ='COMPOSIÇÕES - SICRO-SINAPI'!I34 -> 7.27 | H30: =TRUNC(F30*G30,2) -> 10178 | I30: ='COMPOSIÇÕES - SICRO-SINAPI'!I35 -> 8.83 | J30: =TRUNC(F30*I30,2) -> 12362 | K30: =((J30/$J$33)) -> 0.513686534
E31: TOTAL DO ITEM 2 | J31: =SUM(J28:J30) -> 17496 | K31: =((J31/$J$33)) -> 0.727023103
E33: TOTAL GERAL (R$) | J33: =ROUND((SUM(J26,J31)),4) -> 24065.26 | K33: =((J33/$J$33)) -> 1
E35: PREÇO UNITÁRIO POR M³ | J35: =TRUNC(J33/F29,2) -> 17.18

Sheet MEMÓRIA DE CÁLCULOS
B2: MINISTÉRIO DA INTEGRAÇÃO E DO DESENVOLVIMENTO REGIONAL - MIDR | I2: PLANILHA ORÇAMENTÁRIA PARA MÓDULO MÍNIMO
B3: COMPANHIA DE DESENVOLVIMENTO DOS VALES DO SÃO FRANCISCO E DO PARNAÍBA
B4: 2ª SUPERINTENDÊNCIA REGIONAL - BOM JESUS DA LAPA/BA.
B5: GERÊNCIA DE INFRAESTRUTURA - 2ª/GRD
B7: OBJETO: EXECUÇÃO DE SERVIÇOS DE ESCAVAÇÃO EM SOLO DE 1ª CATEGORIA, OBJETIVANDO À IMPLANTAÇÃO DE RESERVATÓRIOS PARA ACÚMULO DE ÁGUA EM COMUNIDADES DE CARÁTER RURAL EM DIVERSOS MUNICÍPIOS DO ESTADO DA BAHIA, NA ÁREA DE ATUAÇÃO DA 2ª SR DA CODEVASF.
B9: MESES DE REFERÊNCIA: SINAPI-BA: AGOSTO/2025; SICRO-BA: JULHO/2025; TC DNIT: JULHO/2025. BDI: 21,50%. ENCARGOS SOCIAIS: 115,57% (HORISTA) E 71,29% (MENSALISTA).
B11: MEMÓRIA DE CÁLCULOS - MÓDULO MINIMO PARA RESERVATÓRIO DE 1.400 M³
B13: ITEM | C13: DISCRIMINAÇÃO DOS SERVIÇOS | E13: UNDIDADE | F13: QUANTIDADE | G13: MEMÓRIAS DE CÁLCULOS
B15: 1 | C15: SERVIÇOS AUXILIARES
B16: 1.1 | C16: ='COMPOSIÇÕES - SICRO-SINAPI'!A99 -> SICRO 5914639 | D16: TRANSPORTE DE EQUIPAMENTOS EM RODOVIA COM REVESTIMENTO PRIMÁRIO - MOBILIZAÇÃO | E16: ='COMPOSIÇÕES - SICRO-SINAPI'!I98 -> TON x KM | F16: =TRUNC(('MOBIL. REV. PRIMÁRIO'!D19*'MOBIL. REV. PRIMÁRIO'!I24),2) -> 235.8 | G16: 7,86 TON (PESO TOTAL) * 30 KM (DISTÂNCIA MÉDIA) = 235,80 TON x KM
B17: 1.2 | C17: ='COMPOSIÇÕES - SICRO-SINAPI'!A127 -> SICRO 5914640 | D17: TRANSPORTE DE EQUIPAMENTOS EM RODOVIA PAVIMENTADA - MOBILIZAÇÃO | E17: ='COMPOSIÇÕES - SICRO-SINAPI'!I126 -> TON x KM | F17: =TRUNC(('MOBIL. VIA ASFALTADA'!D19*'MOBIL. VIA ASFALTADA'!I24),2) -> 314.4 | G17: 7,86 TON (PESO TOTAL) * 40 KM (DISTÂNCIA MÉDIA) = 314,40 TON x KM
B18: 1.3 | C18: ='COMPOSIÇÕES MISTAS'!A14 -> CPU-01 | D18: ='COMPOSIÇÕES MISTAS'!D14 -> ADMINISTRAÇÃO LOCAL | E18: ='COMPOSIÇÕES MISTAS'!E14 -> % | F18: 1 | G18: 12 H DE ENCARREGADO GERAL + 4 H DE ENGENHEIRO CIVIL (OU AFIM)
B19: 1.4 | C19: ='COMPOSIÇÕES MISTAS'!A21 -> CPU-02 | D19: ='COMPOSIÇÕES MISTAS'!D21 -> PLACA DE OBRA EM CHAPA DE AÇO GALVANIZADO (3,20 M x 1,60 M) | E19: ='COMPOSIÇÕES MISTAS'!E21 -> M² | F19: =(3.2*1.6)/8 -> 0.64 | G19: [3,20 M (LARGURA) * 1,60 M (ALTURA)] / 8 = 0,64 M²
B20: 1.5 | C20: ='COMPOSIÇÕES - SICRO-SINAPI'!A99 -> SICRO 5914639 | D20: TRANSPORTE DE EQUIPAMENTOS EM RODOVIA COM REVESTIMENTO PRIMÁRIO - DESMOBILIZAÇÃO | E20: ='COMPOSIÇÕES - SICRO-SINAPI'!I98 -> TON x KM | F20: =TRUNC(('MOBIL. REV. PRIMÁRIO'!D19*'MOBIL. REV. PRIMÁRIO'!I24),2) -> 235.8 | G20: 7,86 TON (PESO TOTAL) * 30 KM (DISTÂNCIA MÉDIA) = 235,80 TON x KM
B21: 1.6 | C21: ='COMPOSIÇÕES - SICRO-SINAPI'!A127 -> SICRO 5914640 | D21: TRANSPORTE DE EQUIPAMENTOS EM RODOVIA PAVIMENTADA - DESMOBILIZAÇÃO | E21: ='COMPOSIÇÕES - SICRO-SINAPI'!I126 -> TON x KM | F21: =TRUNC(('MOBIL. VIA ASFALTADA'!D19*'MOBIL. VIA ASFALTADA'!I24),2) -> 314.4 | G21: 7,86 TON (PESO TOTAL) * 40 KM (DISTÂNCIA MÉDIA) = 314,40 TON x KM
B22: 1.7 | C22: ='COMPOSIÇÕES MISTAS'!A36 -> CPU-03 | D22: LEVANTAMENTOS TOPOGRÁFICOS PRIMITIVOS | E22: ='COMPOSIÇÕES MISTAS'!E36 -> UND | F22: 1 | G22: VIDE CPU-03
B23: 1.8 | C23: ='COMPOSIÇÕES MISTAS'!A36 -> CPU-03 | D23: LEVANTAMENTOS TOPOGRÁFICOS PARA AS BUILT | E23: ='COMPOSIÇÕES MISTAS'!E36 -> UND | F23: 1 | G23: VIDE CPU-03
B24: 1.9 | C24: ='COMPOSIÇÕES MISTAS'!A50 -> CPU-04 | D24: ='COMPOSIÇÕES MISTAS'!D50 -> VEÍCULO LEVE 53 KW (SEM MOTORISTA) COM COMBUSTÍVEL INCLUSO | E24: ='COMPOSIÇÕES MISTAS'!E50 -> UND x MÊS | F24: =TRUNC((1/25)*2,2) -> 0.08 | G24: [(1 UND x MÊS) / (25 TANQUES/MÊS)] x 2 VEÍCULOS = 0,08 UND x MÊS (POR TANQUE ESCAVADO)
B25: 1.10 | C25: ='COMPOSIÇÕES MISTAS'!A58 -> CPU-05 | D25: ='COMPOSIÇÕES MISTAS'!D58 -> DIÁRIA PARA VIAGEM COM HOSPEDAGEM | E25: ='COMPOSIÇÕES MISTAS'!E58 -> DIÁRIA | F25: =TRUNC(((4*4*2*2)/25),2) -> 2.56 | G25: (4 DIAS/SEMANA * 4 SEMANAS/MÊS * 2 PROFISSIONAIS * 2 VEZES) / 25 TANQUES/MÊS = 2,56 DIÁRIA
B26: 1.11 | C26: ='COMPOSIÇÕES MISTAS'!A66 -> CPU-06 | D26: ='COMPOSIÇÕES MISTAS'!D66 -> DIÁRIA PARA VIAGEM SEM HOSPEDAGEM | E26: ='COMPOSIÇÕES MISTAS'!E66 -> DIÁRIA | F26: =TRUNC(((4/25)*2*2),2) -> 0.64 | G26: (1 DIA/SEMANA * 4 SEMANAS/MÊS * 2 PROFISSIONAIS * 2 VEZES) / 25 TANQUES/MÊS = 0,64 DIÁRIA
B28: 2 | C28: CONSTRUÇÃO DE TANQUE DE CAPTAÇÃO E ARMAZENAMENTO DE ÁGUA, COM CAPACIDADE MÍNIMA DE 1.400 M³
B29: 2.1 | C29: ='COMPOSIÇÕES - SICRO-SINAPI'!A41 -> CODEVASF (adaptado de SICRO 5502985) | D29: LIMPEZA MECANIZADA DA CAMADA VEGETAL COM RETROESCAVADEIRA DE PNEUS COM CAPACIDADE DE 0,75 M³ - 58 KW | E29: ='COMPOSIÇÕES - SICRO-SINAPI'!I40 -> M² | F29: =60*60 -> 3600 | G29: 60 M (LARGURA MÉDIA) x 60 M (COMPRIMENTO MÉDIO) = 3.600 M²
B30: 2.2 | C30: ='COMPOSIÇÕES - SICRO-SINAPI'!A70 -> CODEVASF (adaptado de SICRO 4413942) | D30: ESPALHAMENTO DE MATERIAL COM RETROESCAVADEIRA DE PNEUS COM CAPACIDADE DE 0,76 M³ - 58 KW | E30: ='COMPOSIÇÕES - SICRO-SINAPI'!I69 -> M³ | F30: 1400 | G30: 700,00 M² (ÁREA MÉDIA ESCAVADA) x 2,00 M (PROFUNDIDADE MÉDIA) = 1.400 M³
B31: 2.3 | C31: ='COMPOSIÇÕES - SICRO-SINAPI'!A12 -> CODEVASF (Adaptado de SICRO 5501706) | D31: ESCAVAÇÃO MECÂNICA COM RETROESCAVADEIRA (OU EQUIPAMENTO SUPERIOR) EM MATERIAL DE ESCAVAÇÃO DE 1ª CATEGORIA | E31: ='COMPOSIÇÕES - SICRO-SINAPI'!I11 -> M³ | F31: 1400 | G31: 700,00 M² (ÁREA MÉDIA ESCAVADA) x 2,00 M (PROFUNDIDADE MÉDIA) = 1.400 M³

Sheet COMPOSIÇÕES - SICRO-SINAPI
B1: MINISTÉRIO DA INTEGRAÇÃO E DO DESENVOLVIMENTO REGIONAL
B2: COMPANHIA DE DESENVOLVIMENTO DOS VALES DO SÃO FRANCISCO E DO PARNAÍBA
B3: 2ª SUPERINTENDÊNCIA REGIONAL - GERÊNCIA REGIONAL DE INFRAESTRUTURA
A5: OBJETO: EXECUÇÃO DE SERVIÇOS DE ESCAVAÇÃO EM SOLO DE 1ª CATEGORIA, OBJETIVANDO À IMPLANTAÇÃO DE RESERVATÓRIOS PARA ACÚMULO DE ÁGUA EM COMUNIDADES DE CARÁTER RURAL EM DIVERSOS MUNICÍPIOS DO ESTADO DA BAHIA, NA ÁREA DE ATUAÇÃO DA 2ª SR DA CODEVASF.
G7: BDI (%): | H7: =TRUNC('BDI M. DE OBRA E SERVIÇOS'!D36,4) -> 0.215
A9: CGCIT | I9: DNIT
A10: SISTEMA DE CUSTOS REFERENCIAIS DE OBRAS - SICRO | D10: Bahia | G10: FIC | H10: 0.01425
A11: Custo Unitário de Referência | D11: Julho de 2025 | G11: Produção da equipe | H11: 26 | I11: M³
A12: CODEVASF (Adaptado de SICRO 5501706) | B12: Escavação mecânica com retroescavadeira em material de 1ª categoria | H12: Valores em reais (R$)
A13: A - EQUIPAMENTOS | C13: Quantidade | D13: Utilização | F13: Custo Horário | I13: Custo
D14: Operativa | E14: Improdutiva | F14: Produtivo | G14: Improdutivo | I14: Horário Total
A15: ='INSUMOS E SERVIÇOS - PREÇOS'!D6 -> E9526 | B15: ='INSUMOS E SERVIÇOS - PREÇOS'!A6 -> RETROESCAVADEIRA DE PNEUS - CAPACIDADE DA CAÇAMBA DA PÁ CARREGADEIRA DE 0,76 M³ E DA RETROESCAVADEIRA DE 0,29 M³ - 58 KW | C15: 1 | D15: 1 | E15: 0 | F15: ='INSUMOS E SERVIÇOS - PREÇOS'!F6 -> 162.0506 | G15: ='INSUMOS E SERVIÇOS - PREÇOS'!G6 -> 87.2383 | I15: =TRUNC((((D15*F15)+(E15*G15))*C15),2) -> 162.05
G16: Custo horário total de equipamentos | I16: =SUM(I15) -> 162.05
A17: B - MÃO DE OBRA | C17: Quantidade | D17: Unidade | F17: Custo Horário | G17: Custo Horário Total
A18: ='INSUMOS E SERVIÇOS - PREÇOS'!D23 -> 88316 | B18: ='INSUMOS E SERVIÇOS - PREÇOS'!A23 -> SERVENTE COM ENCARGOS COMPLEMENTARES | C18: 1 | D18: h | F18: ='INSUMOS E SERVIÇOS - PREÇOS'!F23 -> 24.37 | I18: =TRUNC((C18*F18),2) -> 24.37
C19: Custo horário total de mão de obra | I19: =SUM(I18) -> 24.37
C20: Custo horário total de execução | I20: =TRUNC((SUM(I16,I19)),2) -> 186.42
C21: Custo unitário de execução | I21: =TRUNC((I20/H11),2) -> 7.17
G22: Custo do FIC | I22: =TRUNC((I21*H10),2) -> 0.1
G23: Custo do FIT | I23: -
A24: C - MATERIAL | C24: Quantidade | D24: Unidade | F24: Preço Unitário | G24: Custo Unitário
C25: Custo unitário total de material
A26: D - ATIVIDADES AUXILIARES | C26: Quantidade | D26: Unidade | F26: Custo Unitário | G26: Custo Unitário
C27: Custo total de atividades auxiliares
G28: Subtotal | I28: =TRUNC((I21+I22),2) -> 7.27
A29: E - TEMPO FIXO | C29: Código | D29: Quantidade | E29: Unidade | G29: Custo Unitário | H29: Custo Unitário
C30: Custo unitário total de tempo fixo
A31: F - MOMENTO DE TRANSPORTE | C31: Quantidade | D31: Unidade | E31: DMT | I31: Custo Unitário
E32: LN | F32: RP | G32: P
C33: Custo unitário total de transporte
E34: Custo unitário direto total | I34: =TRUNC((I28),2) -> 7.27
A35: Obs.: | H35: Com BDI | I35: =TRUNC(((1+$H$7)*I34),2) -> 8.83
A38: CGCIT | I38: DNIT
A39: SISTEMA DE CUSTOS REFERENCIAIS DE OBRAS - SICRO | D39: Bahia | G39: FIC | H39: 0.01425
A40: Custo Unitário de Referência | D40: Julho de 2025 | G40: Produção da equipe | H40: =622.95*0.6 -> 373.77 | I40: M²
A41: CODEVASF (adaptado de SICRO 5502985) | B41: Limpeza mecanizada da camada vegetal com retroescavadeira de pneus com capacidade de 0,76 m³ - 58 Kw | H41: Valores em reais (R$)
A42: A - EQUIPAMENTOS | C42: Quantidade | D42: Utilização | F42: Custo Horário | I42: Custo
D43: Operativa | E43: Improdutiva | F43: Produtivo | G43: Improdutivo | I43: Horário Total
A44: ='INSUMOS E SERVIÇOS - PREÇOS'!D6 -> E9526 | B44: ='INSUMOS E SERVIÇOS - PREÇOS'!A6 -> RETROESCAVADEIRA DE PNEUS - CAPACIDADE DA CAÇAMBA DA PÁ CARREGADEIRA DE 0,76 M³ E DA RETROESCAVADEIRA DE 0,29 M³ - 58 KW | C44: 1 | D44: 1 | E44: 0 | F44: ='INSUMOS E SERVIÇOS - PREÇOS'!F6 -> 162.0506 | G44: ='INSUMOS E SERVIÇOS - PREÇOS'!G6 -> 87.2383 | I44: =TRUNC((((D44*F44)+(E44*G44))*C44),2) -> 162.05
G45: Custo horário total de equipamentos | I45: =TRUNC((SUM(I44)),2) -> 162.05
A46: B - MÃO DE OBRA | C46: Quantidade | D46: Unidade | F46: Custo Horário | G46: Custo Horário Total
A47: ='INSUMOS E SERVIÇOS - PREÇOS'!D23 -> 88316 | B47: ='INSUMOS E SERVIÇOS - PREÇOS'!A23 -> SERVENTE COM ENCARGOS COMPLEMENTARES | C47: 1 | D47: h | F47: ='INSUMOS E SERVIÇOS - PREÇOS'!F23 -> 24.37 | I47: =TRUNC((C47*F47),2) -> 24.37
C48: Custo horário total de mão de obra | I48: =TRUNC(SUM(I47),2) -> 24.37
C49: Custo horário total de execução | I49: =TRUNC(SUM(I45,I48),2) -> 186.42
C50: Custo unitário de execução | I50: =TRUNC((I49/H40),2) -> 0.49
G51: Custo do FIC | I51: =TRUNC((I50*H39),2) -> 0
G52: Custo do FIT | I52: -
A53: C - MATERIAL | C53: Quantidade | D53: Unidade | F53: Preço Unitário | G53: Custo Unitário
C54: Custo unitário total de material
A55: D - ATIVIDADES AUXILIARES | C55: Quantidade | D55: Unidade | F55: Custo Unitário | G55: Custo Unitário
C56: Custo total de atividades auxiliares
G57: Subtotal | I57: =TRUNC((I50+I51),2) -> 0.49
A58: E - TEMPO FIXO | C58: Código | D58: Quantidade | E58: Unidade | G58: Custo Unitário | H58: Custo Unitário
C59: Custo unitário total de tempo fixo
A60: F - MOMENTO DE TRANSPORTE | C60: Quantidade | D60: Unidade | E60: DMT | I60: Custo Unitário
E61: LN | F61: RP | G61: P
C62: Custo unitário total de transporte
E63: Custo unitário direto total | I63: =TRUNC((I57),2) -> 0.49
A64: Obs.: considerou-se o rendimento da retroescavadeira de 58 kw correspondente a 60% do rendimento do trator sobre esteiras com lâmina de 127 kw. | H64: Com BDI | I64: =TRUNC(((1+$H$7)*I63),2) -> 0.59
A67: CGCIT | I67: DNIT
A68: SISTEMA DE CUSTOS REFERENCIAIS DE OBRAS - SICRO | D68: Bahia | G68: FIC | H68: 0.01425
A69: Custo Unitário de Referência | D69: Julho de 2025 | G69: Produção da equipe | H69: =176.81*0.6 -> 106.086 | I69: M³
A70: CODEVASF (adaptado de SICRO 4413942) | B70: Espalhamento de material em bota-fora com retroescavadeira de pneus com capacidade de 0,76 m³ - 58 Kw | H70: Valores em reais (R$)
A71: A - EQUIPAMENTOS | C71: Quantidade | D71: Utilização | F71: Custo Horário | I71: Custo
D72: Operativa | E72: Improdutiva | F72: Produtivo | G72: Improdutivo | I72: Horário Total
A73: ='INSUMOS E SERVIÇOS - PREÇOS'!D6 -> E9526 | B73: ='INSUMOS E SERVIÇOS - PREÇOS'!A6 -> RETROESCAVADEIRA DE PNEUS - CAPACIDADE DA CAÇAMBA DA PÁ CARREGADEIRA DE 0,76 M³ E DA RETROESCAVADEIRA DE 0,29 M³ - 58 KW | C73: 1 | D73: 1 | E73: 0 | F73: ='INSUMOS E SERVIÇOS - PREÇOS'!F6 -> 162.0506 | G73: ='INSUMOS E SERVIÇOS - PREÇOS'!G6 -> 87.2383 | I73: =TRUNC((((D73*F73)+(E73*G73))*C73),2) -> 162.05
G74: Custo horário total de equipamentos | I74: =TRUNC((SUM(I73)),2) -> 162.05
A75: B - MÃO DE OBRA | C75: Quantidade | D75: Unidade | F75: Custo Horário | G75: Custo Horário Total
A76: ='INSUMOS E SERVIÇOS - PREÇOS'!D23 -> 88316 | B76: ='INSUMOS E SERVIÇOS - PREÇOS'!A23 -> SERVENTE COM ENCARGOS COMPLEMENTARES | C76: 1 | D76: h | F76: ='INSUMOS E SERVIÇOS - PREÇOS'!F23 -> 24.37 | I76: =TRUNC((C76*F76),2) -> 24.37
C77: Custo horário total de mão de obra | I77: =TRUNC((SUM(I76)),2) -> 24.37
C78: Custo horário total de execução | I78: =TRUNC((SUM(I74,I77)),2) -> 186.42
C79: Custo unitário de execução | I79: =TRUNC((I78/H69),2) -> 1.75
G80: Custo do FIC | I80: =TRUNC((I79*H68),2) -> 0.02
G81: Custo do FIT | I81: -
A82: C - MATERIAL | C82: Quantidade | D82: Unidade | F82: Preço Unitário | G82: Custo Unitário
C83: Custo unitário total de material
A84: D - ATIVIDADES AUXILIARES | C84: Quantidade | D84: Unidade | F84: Custo Unitário | G84: Custo Unitário
C85: Custo total de atividades auxiliares
G86: Subtotal | I86: =TRUNC((I79+I80),2) -> 1.77
A87: E - TEMPO FIXO | C87: Código | D87: Quantidade | E87: Unidade | G87: Custo Unitário | H87: Custo Unitário
C88: Custo unitário total de tempo fixo
A89: F - MOMENTO DE TRANSPORTE | C89: Quantidade | D89: Unidade | E89: DMT | I89: Custo Unitário
E90: LN | F90: RP | G90: P
C91: Custo unitário total de transporte
E92: Custo unitário direto total | I92: =TRUNC((I79+I80),2) -> 1.77
A93: Obs.: considerou-se o rendimento da retroescavadeira de 58 kw correspondente a 60% do rendimento do trator sobre esteiras com lâmina de 127 kw. | H93: Com BDI | I93: =TRUNC(((1+$H$7)*I92),2) -> 2.15
A96: CGCIT | I96: DNIT
A97: SISTEMA DE CUSTOS REFERENCIAIS DE OBRAS - SICRO | D97: Bahia | G97: FIC | H97: 0.01425
A98: Custo Unitário de Referência | D98: Julho de 2025 | G98: Produção da equipe | H98: 669.81 | I98: TON x KM
A99: SICRO 5914639 | B99: Transporte com cavalo mecânico com semirreboque com capacidade de 32 t - rodovia em revestimento primário | H99: Valores em reais (R$)
A100: A - EQUIPAMENTOS | C100: Quantidade | D100: Utilização | F100: Custo Horário | I100: Custo
D101: Operativa | E101: Improdutiva | F101: Produtivo | G101: Improdutivo | I101: Horário Total
A102: ='INSUMOS E SERVIÇOS - PREÇOS'!D5 -> E9666 | B102: ='INSUMOS E SERVIÇOS - PREÇOS'!A5 -> CAVALO MECÂNICO COM SEMIRREBOQUE COM CAPACIDADE DE 32 T - 302 KW | C102: 1 | D102: 1 | E102: 0 | F102: ='INSUMOS E SERVIÇOS - PREÇOS'!F5 -> 472.366 | G102: ='INSUMOS E SERVIÇOS - PREÇOS'!G5 -> 148.9355 | I102: =TRUNC((((D102*F102)+(E102*G102))*C102),2) -> 472.36
G103: Custo horário total de equipamentos | I103: =TRUNC((SUM(I102)),2) -> 472.36
A104: B - MÃO DE OBRA | C104: Quantidade | D104: Unidade | F104: Custo Horário | G104: Custo Horário Total
C105: Custo horário total de mão de obra
C106: Custo horário total de execução | I106: =TRUNC((I103),2) -> 472.36
C107: Custo unitário de execução | I107: =TRUNC((I106/H98),2) -> 0.7
G108: Custo do FIC | I108: =TRUNC(I107*H97,2) -> 0
G109: Custo do FIT | I109: -
A110: C - MATERIAL | C110: Quantidade | D110: Unidade | F110: Preço Unitário | G110: Custo Unitário
C111: Custo unitário total de material
A112: D - ATIVIDADES AUXILIARES | C112: Quantidade | D112: Unidade | F112: Custo Unitário | G112: Custo Unitário
C113: Custo total de atividades auxiliares
G114: Subtotal | I114: =TRUNC((SUM(I107,I108)),2) -> 0.7
A115: E - TEMPO FIXO | C115: Código | D115: Quantidade | E115: Unidade | G115: Custo Unitário | H115: Custo Unitário
C116: Custo unitário total de tempo fixo
A117: F - MOMENTO DE TRANSPORTE | C117: Quantidade | D117: Unidade | E117: DMT | I117: Custo Unitário
E118: LN | F118: RP | G118: P
C119: Custo unitário total de transporte
E120: Custo unitário direto total | I120: =TRUNC((I114),2) -> 0.7
A121: Obs.: | H121: Com BDI | I121: =TRUNC(((1+$H$7)*I120),2) -> 0.85
A124: CGCIT | I124: DNIT
A125: SISTEMA DE CUSTOS REFERENCIAIS DE OBRAS - SICRO | D125: Bahia | G125: FIC | H125: 0
A126: Custo Unitário de Referência | D126: Julho de 2025 | G126: Produção da equipe | H126: 803.77 | I126: TON x KM
A127: SICRO 5914640 | B127: Transporte com cavalo mecânico com semirreboque com capacidade de 32 t - rodovia pavimentada | H127: Valores em reais (R$)
A128: A - EQUIPAMENTOS | C128: Quantidade | D128: Utilização | F128: Custo Horário | I128: Custo
D129: Operativa | E129: Improdutiva | F129: Produtivo | G129: Improdutivo | I129: Horário Total
A130: ='INSUMOS E SERVIÇOS - PREÇOS'!D5 -> E9666 | B130: ='INSUMOS E SERVIÇOS - PREÇOS'!A5 -> CAVALO MECÂNICO COM SEMIRREBOQUE COM CAPACIDADE DE 32 T - 302 KW | C130: 1 | D130: 1 | E130: 0 | F130: ='INSUMOS E SERVIÇOS - PREÇOS'!F5 -> 472.366 | G130: ='INSUMOS E SERVIÇOS - PREÇOS'!G5 -> 148.9355 | I130: =TRUNC(((((D130*F130)+(E130*G130))*C130)),2) -> 472.36
G131: Custo horário total de equipamentos | I131: =TRUNC((SUM(I130)),2) -> 472.36
A132: B - MÃO DE OBRA | C132: Quantidade | D132: Unidade | F132: Custo Horário | G132: Custo Horário Total
C133: Custo horário total de mão de obra
C134: Custo horário total de execução | I134: =TRUNC((I131),2) -> 472.36
C135: Custo unitário de execução | I135: =TRUNC((I134/H126),2) -> 0.58
G136: Custo do FIC | I136: =TRUNC(I135*H125,2) -> 0
G137: Custo do FIT | I137: -
A138: C - MATERIAL | C138: Quantidade | D138: Unidade | F138: Preço Unitário | G138: Custo Unitário
C139: Custo unitário total de material
A140: D - ATIVIDADES AUXILIARES | C140: Quantidade | D140: Unidade | F140: Custo Unitário | G140: Custo Unitário
C141: Custo total de atividades auxiliares
G142: Subtotal | I142: =TRUNC((SUM(I135,I136)),2) -> 0.58
A143: E - TEMPO FIXO | C143: Código | D143: Quantidade | E143: Unidade | G143: Custo Unitário | H143: Custo Unitário
C144: Custo unitário total de tempo fixo
A145: F - MOMENTO DE TRANSPORTE | C145: Quantidade | D145: Unidade | E145: DMT | I145: Custo Unitário
E146: LN | F146: RP | G146: P
C147: Custo unitário total de transporte
E148: Custo unitário direto total | I148: =TRUNC((I142),2) -> 0.58
A149: Obs.: | H149: Com BDI | I149: =TRUNC(((1+$H$7)*I148),2) -> 0.7

Sheet COMPOSIÇÕES MISTAS
D1: MINISTÉRIO DA INTEGRAÇÃO E DO DESENVOLVIMENTO REGIONAL
D2: COMPANHIA DE DESENVOLVIMENTO DOS VALES DO SÃO FRANCISCO E DO PARNAÍBA
D3: 2ª SUPERINTENDÊNCIA REGIONAL - GERÊNCIA REGIONAL DE INFRAESTRUTURA
A6: PLANILHA COMPOSIÇÕES DE PREÇOS - ADMINISTRAÇÃO LOCAL E PLACA DE OBRAS
A8: OBJETO: EXECUÇÃO DE SERVIÇOS DE ESCAVAÇÃO EM SOLO DE 1ª CATEGORIA, OBJETIVANDO À IMPLANTAÇÃO DE RESERVATÓRIOS PARA ACÚMULO DE ÁGUA EM COMUNIDADES RURAIS DIFUSAS DE DIVERSOS MUNICÍPIOS DO ESTADO DA BAHIA, NA ÁREA DE ATUAÇÃO DA 2ª SR DA CODEVASF.
F10: BDI (%): | H10: =TRUNC('BDI M. DE OBRA E SERVIÇOS'!D36,4) -> 0.215
F11: ENCARGOS SOCIAIS HORISTAS (%): | H11: ='DET. ENCARGOS'!C45 -> 115.57
A12: BASE: | B12: SINAPI-BA: AGOSTO/2025; SICRO-BA: JULHO/2025; TC DNIT: JULHO/2025. | F12: NÃO DESONERADO
A13: ADMINISTRAÇÃO LOCAL
A14: CPU-01 | B14: REFERÊNCIA | C14: CÓDIGO | D14: ADMINISTRAÇÃO LOCAL | E14: % | F14: QUANTITATIVO | G14: CUSTO UNITÁRIO | H14: TOTAL (R$)
A15: COMPOSIÇÃO | B15: SINAPI | C15: ='INSUMOS E SERVIÇOS - PREÇOS'!D15 -> 90776 | D15: ='INSUMOS E SERVIÇOS - PREÇOS'!A15 -> ENCARREGADO GERAL COM ENCARGOS COMPLEMENTARES | E15: ='INSUMOS E SERVIÇOS - PREÇOS'!E15 -> H | F15: 12 | G15: ='INSUMOS E SERVIÇOS - PREÇOS'!F15 -> 40.87 | H15: =TRUNC(F15*G15,2) -> 490.44
A16: COMPOSIÇÃO | B16: SINAPI | C16: ='INSUMOS E SERVIÇOS - PREÇOS'!D16 -> 90777 | D16: ='INSUMOS E SERVIÇOS - PREÇOS'!A16 -> ENGENHEIRO CIVIL (OU AFIM) DE OBRA JUNIOR COM ENCARGOS COMPLEMENTARES | E16: ='INSUMOS E SERVIÇOS - PREÇOS'!E16 -> H | F16: 4 | G16: ='INSUMOS E SERVIÇOS - PREÇOS'!F16 -> 130.58 | H16: =TRUNC(F16*G16,2) -> 522.32
E17: CUSTO TOTAL | H17: =TRUNC(SUM(H15:H16),2) -> 1012.76
E18: BDI | H18: =TRUNC(H17*H10,2) -> 217.74
E19: PREÇO GLOBAL TOTAL: | H19: =TRUNC(H17+H18,2) -> 1230.5
A20: PLACA DE OBRA
A21: CPU-02 | B21: REFERÊNCIA | C21: CÓDIGO | D21: PLACA DE OBRA EM CHAPA DE AÇO GALVANIZADO (3,20 M x 1,60 M) | E21: M² | F21: QUANTITATIVO | G21: CUSTO UNITÁRIO | H21: TOTAL (R$)
A22: INSUMO | B22: SINAPI | C22: ='INSUMOS E SERVIÇOS - PREÇOS'!D21 -> 5075 | D22: ='INSUMOS E SERVIÇOS - PREÇOS'!A21 -> PREGO DE AÇO POLIDO COM CABEÇA 18 X 30 (2 3/4 X 10) | E22: ='INSUMOS E SERVIÇOS - PREÇOS'!E21 -> KG | F22: 0.11 | G22: ='INSUMOS E SERVIÇOS - PREÇOS'!F21 -> 16.32 | H22: =TRUNC(F22*G22,2) -> 1.79
A23: INSUMO | B23: SINAPI | C23: ='INSUMOS E SERVIÇOS - PREÇOS'!D20 -> 4491 | D23: ='INSUMOS E SERVIÇOS - PREÇOS'!A20 -> PONTALETE *7,5 X 7,5* CM EM PINUS, MISTA OU EQUIVALENTE DA REGIÃO - BRUTA | E23: ='INSUMOS E SERVIÇOS - PREÇOS'!E20 -> M | F23: 4 | G23: ='INSUMOS E SERVIÇOS - PREÇOS'!F20 -> 9.59 | H23: 38.36
A24: INSUMO | B24: SINAPI | C24: ='INSUMOS E SERVIÇOS - PREÇOS'!D22 -> 4417 | D24: ='INSUMOS E SERVIÇOS - PREÇOS'!A22 -> SARRAFO NÃO APARELHADO *2,5 X 7* CM, EM MAÇARANDUBA, ANGELIM OU EQUIVALENTE DA REGIÃO - BRUTA | E24: ='INSUMOS E SERVIÇOS - PREÇOS'!E22 -> M | F24: 1 | G24: ='INSUMOS E SERVIÇOS - PREÇOS'!F22 -> 7.24 | H24: 7.24
A25: INSUMO | B25: SINAPI | C25: ='INSUMOS E SERVIÇOS - PREÇOS'!D19 -> 4813 | D25: ='INSUMOS E SERVIÇOS - PREÇOS'!A19 -> PLACA DE OBRA (PARA CONSTRUÇÃO CIVIL) EM CHAPA GALVANIZADA *N. 22*, ADESIVADA, DE *2,4 X 1,2* M (SEM POSTES PARA FIXAÇÃO) | E25: ='INSUMOS E SERVIÇOS - PREÇOS'!E19 -> M² | F25: 1 | G25: ='INSUMOS E SERVIÇOS - PREÇOS'!F19 -> 377.5 | H25: 377.5
A26: INSUMO | B26: SINAPI | C26: ='INSUMOS E SERVIÇOS - PREÇOS'!D9 -> 370 | D26: ='INSUMOS E SERVIÇOS - PREÇOS'!A9 -> AREIA MEDIA - POSTO JAZIDA/FORNECEDOR (RETIRADO NA JAZIDA, SEM TRANSPORTE) | E26: ='INSUMOS E SERVIÇOS - PREÇOS'!E9 -> M³ | F26: 0.0049 | G26: ='INSUMOS E SERVIÇOS - PREÇOS'!F9 -> 139.89 | H26: 0.68
A27: INSUMO | B27: SINAPI | C27: ='INSUMOS E SERVIÇOS - PREÇOS'!D13 -> 1379 | D27: ='INSUMOS E SERVIÇOS - PREÇOS'!A13 -> CIMENTO PORTLAND COMPOSTO CP II-32 | E27: ='INSUMOS E SERVIÇOS - PREÇOS'!E13 -> KG | F27: 1.5 | G27: ='INSUMOS E SERVIÇOS - PREÇOS'!F13 -> 0.8 | H27: 1.2
A28: INSUMO | B28: SINAPI | C28: ='INSUMOS E SERVIÇOS - PREÇOS'!D18 -> 4718 | D28: ='INSUMOS E SERVIÇOS - PREÇOS'!A18 -> PEDRA BRITADA N. 2 (19 A 38 MM) POSTO PEDREIRA/FORNECEDOR, SEM FRETE | E28: ='INSUMOS E SERVIÇOS - PREÇOS'!E18 -> M³ | F28: 0.0098 | G28: ='INSUMOS E SERVIÇOS - PREÇOS'!F18 -> 116.7 | H28: 1.14
A29: COMPOSIÇÃO | B29: SINAPI | C29: ='INSUMOS E SERVIÇOS - PREÇOS'!D11 -> 87445 | D29: ='INSUMOS E SERVIÇOS - PREÇOS'!A11 -> BETONEIRA CAPACIDADE NOMINAL 400 L, CAPACIDADE DE MISTURA 310 L, MOTOR A DIESEL POTÊNCIA 5,0 HP, SEM CARREGADOR - CHP DIURNO. AF_06/2014 | E29: ='INSUMOS E SERVIÇOS - PREÇOS'!E11 -> H | F29: 0.0065 | G29: ='INSUMOS E SERVIÇOS - PREÇOS'!F11 -> 5.38 | H29: 0.03
A30: COMPOSIÇÃO | B30: SINAPI | C30: ='INSUMOS E SERVIÇOS - PREÇOS'!D12 -> 88262 | D30: ='INSUMOS E SERVIÇOS - PREÇOS'!A12 -> CARPINTEIRO DE FORMAS COM ENCARGOS COMPLEMENTARES | E30: ='INSUMOS E SERVIÇOS - PREÇOS'!E12 -> H | F30: 1 | G30: ='INSUMOS E SERVIÇOS - PREÇOS'!F12 -> 33.07 | H30: 33.07
A31: COMPOSIÇÃO | B31: SINAPI | C31: ='INSUMOS E SERVIÇOS - PREÇOS'!D23 -> 88316 | D31: ='INSUMOS E SERVIÇOS - PREÇOS'!A23 -> SERVENTE COM ENCARGOS COMPLEMENTARES | E31: ='INSUMOS E SERVIÇOS - PREÇOS'!E23 -> H | F31: 2.06 | G31: ='INSUMOS E SERVIÇOS - PREÇOS'!F23 -> 24.37 | H31: 50.2
E32: CUSTO TOTAL | H32: =TRUNC((SUM(H22:H31)),2) -> 511.21
E33: BDI | H33: =TRUNC(H32*H10,2) -> 109.91
E34: PREÇO UNITÁRIO TOTAL (com BDI): | H34: =TRUNC(H32+H33,2) -> 621.12
A35: LEVANTAMENTOS TOPOGRÁFICOS PRIMITIVOS / AS BUILT
A36: CPU-03 | B36: REFERÊNCIA | C36: CÓDIGO | D36: LEVANTAMENTOS TOPOGRÁFICOS PRIMITIVOS / AS BUILT | E36: UND | F36: QUANTITATIVO | G36: CUSTO UNITÁRIO | H36: TOTAL (R$)
A37: COMPOSIÇÃO | B37: SINAPI | C37: ='INSUMOS E SERVIÇOS - PREÇOS'!D24 -> 90781 | D37: ='INSUMOS E SERVIÇOS - PREÇOS'!A24 -> TOPÓGRAFO COM ENCARGOS COMPLEMENTARES | E37: ='INSUMOS E SERVIÇOS - PREÇOS'!E24 -> H | F37: =160/25 -> 6.4 | G37: ='INSUMOS E SERVIÇOS - PREÇOS'!F24 -> 40.59 | H37: =TRUNC(F37*G37,2) -> 259.77
A38: COMPOSIÇÃO | B38: SINAPI | C38: ='INSUMOS E SERVIÇOS - PREÇOS'!D10 -> 88253 | D38: ='INSUMOS E SERVIÇOS - PREÇOS'!A10 -> AUXILIAR DE TOPÓGRAFO COM ENCARGOS COMPLEMENTARES | E38: ='INSUMOS E SERVIÇOS - PREÇOS'!E10 -> H | F38: =160/25 -> 6.4 | G38: ='INSUMOS E SERVIÇOS - PREÇOS'!F10 -> 17.51 | H38: 112.06
A39: COMPOSIÇÃO | B39: SINAPI | C39: ='INSUMOS E SERVIÇOS - PREÇOS'!D14 -> 90775 | D39: ='INSUMOS E SERVIÇOS - PREÇOS'!A14 -> DESENHISTA/PROJETISTA COM ENCARGOS COMPLEMENTARES | E39: ='INSUMOS E SERVIÇOS - PREÇOS'!E14 -> H | F39: =160/25 -> 6.4 | G39: ='INSUMOS E SERVIÇOS - PREÇOS'!F14 -> 31.24 | H39: 199.93
A40: COMPOSIÇÃO | B40: ='INSUMOS E SERVIÇOS - PREÇOS'!B34 -> CODEVASF | C40: ='INSUMOS E SERVIÇOS - PREÇOS'!D34 -> COT-05 | D40: ='INSUMOS E SERVIÇOS - PREÇOS'!A34 -> NOTEBOOK + MICROSOFT OFFICE | E40: ='INSUMOS E SERVIÇOS - PREÇOS'!E34 -> UND x MÊS | F40: =1/25 -> 0.04 | G40: ='INSUMOS E SERVIÇOS - PREÇOS'!F34 -> 141.42 | H40: 5.65
A41: COMPOSIÇÃO | B41: ='INSUMOS E SERVIÇOS - PREÇOS'!B32 -> CODEVASF | C41: ='INSUMOS E SERVIÇOS - PREÇOS'!D32 -> COT-01 | D41: ='INSUMOS E SERVIÇOS - PREÇOS'!A32 -> AUTOCAD CIVIL 3D | E41: ='INSUMOS E SERVIÇOS - PREÇOS'!E32 -> UND x MÊS | F41: 0.04 | G41: ='INSUMOS E SERVIÇOS - PREÇOS'!F32 -> 978.75 | H41: 39.15
A42: COMPOSIÇÃO | B42: ='INSUMOS E SERVIÇOS - PREÇOS'!B33 -> CODEVASF | C42: ='INSUMOS E SERVIÇOS - PREÇOS'!D33 -> COT-02 | D42: ='INSUMOS E SERVIÇOS - PREÇOS'!A33 -> AUTOCAD RECAP PRO | E42: ='INSUMOS E SERVIÇOS - PREÇOS'!E33 -> UND x MÊS | F42: 0.04 | G42: ='INSUMOS E SERVIÇOS - PREÇOS'!F33 -> 163.75 | H42: 6.55
A43: COMPOSIÇÃO | B43: ='INSUMOS E SERVIÇOS - PREÇOS'!B27 -> TC DNIT | C43: ='INSUMOS E SERVIÇOS - PREÇOS'!D27 -> B8958 | D43: ='INSUMOS E SERVIÇOS - PREÇOS'!A27 -> TOPOGRAFIA (EQUIPAMENTOS BÁSICOS) | E43: ='INSUMOS E SERVIÇOS - PREÇOS'!E27 -> CONJ x MÊS | F43: 0.04 | G43: ='INSUMOS E SERVIÇOS - PREÇOS'!F27 -> 5426.19 | H43: 217.04
A44: COMPOSIÇÃO | B44: ='INSUMOS E SERVIÇOS - PREÇOS'!B28 -> TC DNIT | C44: ='INSUMOS E SERVIÇOS - PREÇOS'!D28 -> B8961 | D44: ='INSUMOS E SERVIÇOS - PREÇOS'!A28 -> TOPOGRAFIA POR VANT | E44: ='INSUMOS E SERVIÇOS - PREÇOS'!E28 -> UND x MÊS | F44: 0.04 | G44: ='INSUMOS E SERVIÇOS - PREÇOS'!F28 -> 904.73 | H44: 36.18
A45: COMPOSIÇÃO | B45: ='INSUMOS E SERVIÇOS - PREÇOS'!B35 -> CODEVASF | C45: ='INSUMOS E SERVIÇOS - PREÇOS'!D35 -> COT-06 | D45: ='INSUMOS E SERVIÇOS - PREÇOS'!A35 -> SOFTWARE DE FOTOGAMETRIA (PIX4D OU COMPATÍVEL) | E45: ='INSUMOS E SERVIÇOS - PREÇOS'!E35 -> UND x MÊS | F45: 0.04 | G45: ='INSUMOS E SERVIÇOS - PREÇOS'!F35 -> 1690.45 | H45: 67.61
E46: CUSTO TOTAL | H46: =TRUNC(SUM(H37:H45),2) -> 943.94
E47: BDI | H47: =TRUNC(H46*$H$10,2) -> 202.94
E48: PREÇO GLOBAL TOTAL: | H48: =TRUNC(H46+H47,2) -> 1146.88
A49: VEÍCULO LEVE COM COMBUSTÍVEL (SEM MOTORISTA)
A50: CPU-04 | B50: REFERÊNCIA | C50: CÓDIGO | D50: VEÍCULO LEVE 53 KW (SEM MOTORISTA) COM COMBUSTÍVEL INCLUSO | E50: UND x MÊS | F50: QUANTITATIVO/ MÊS | G50: CUSTO UNITÁRIO | H50: TOTAL
A51: COMPOSIÇÃO | B51: ='INSUMOS E SERVIÇOS - PREÇOS'!B29 -> TC DNIT | C51: ='INSUMOS E SERVIÇOS - PREÇOS'!D29 -> E8889 | D51: ='INSUMOS E SERVIÇOS - PREÇOS'!A29 -> VEÍCULO LEVE 53 KW (SEM MOTORISTA) | E51: CHP | F51: 66 | G51: ='INSUMOS E SERVIÇOS - PREÇOS'!F29 -> 36.65 | H51: =TRUNC(F51*G51,2) -> 2418.9
A52: COMPOSIÇÃO | B52: ='INSUMOS E SERVIÇOS - PREÇOS'!B29 -> TC DNIT | C52: ='INSUMOS E SERVIÇOS - PREÇOS'!D29 -> E8889 | D52: ='INSUMOS E SERVIÇOS - PREÇOS'!A29 -> VEÍCULO LEVE 53 KW (SEM MOTORISTA) | E52: CHI | F52: 116.49 | G52: ='INSUMOS E SERVIÇOS - PREÇOS'!G29 -> 6.69 | H52: =TRUNC(F52*G52,2) -> 779.31
A53: INSUMO | B53: ='INSUMOS E SERVIÇOS - PREÇOS'!B17 -> SINAPI BAHIA | C53: ='INSUMOS E SERVIÇOS - PREÇOS'!D17 -> 4222 | D53: ='INSUMOS E SERVIÇOS - PREÇOS'!A17 -> GASOLINA COMUM | E53: ='INSUMOS E SERVIÇOS - PREÇOS'!E17 -> L | F53: =45*2*4 -> 360 | G53: ='INSUMOS E SERVIÇOS - PREÇOS'!F17 -> 6.21 | H53: =TRUNC(F53*G53,2) -> 2235.6
E54: CUSTO TOTAL | H54: =TRUNC(SUM(H51:H53),2) -> 5433.81
E55: BDI | H55: =TRUNC(H54*$H$10,2) -> 1168.26
E56: PREÇO GLOBAL TOTAL: | H56: =TRUNC(H54+H55,2) -> 6602.07
A57: DIÁRIA COM HOSPEDAGEM
A58: CPU-05 | B58: REFERÊNCIA | C58: CÓDIGO | D58: DIÁRIA PARA VIAGEM COM HOSPEDAGEM | E58: DIÁRIA | F58: QUANTIDADE | G58: CUSTO UNITÁRIO | H58: TOTAL
A59: COMPOSIÇÃO | B59: ='INSUMOS E SERVIÇOS - PREÇOS'!B36 -> CODEVASF | C59: ='INSUMOS E SERVIÇOS - PREÇOS'!D36 -> COT-07 | D59: ='INSUMOS E SERVIÇOS - PREÇOS'!A36 -> VIAGEM - ALIMENTAÇÃO | E59: ='INSUMOS E SERVIÇOS - PREÇOS'!E36 -> UND | F59: 1 | G59: ='INSUMOS E SERVIÇOS - PREÇOS'!F36 -> 109.21 | H59: =TRUNC(F59*G59,2) -> 109.21
A60: COMPOSIÇÃO | B60: ='INSUMOS E SERVIÇOS - PREÇOS'!B37 -> CODEVASF | C60: ='INSUMOS E SERVIÇOS - PREÇOS'!D37 -> COT-08 | D60: ='INSUMOS E SERVIÇOS - PREÇOS'!A37 -> VIAGEM - HOSPEDAGEM | E60: ='INSUMOS E SERVIÇOS - PREÇOS'!E37 -> UND | F60: 1 | G60: ='INSUMOS E SERVIÇOS - PREÇOS'!F37 -> 274.47 | H60: =TRUNC(F60*G60,2) -> 274.47
E61: CUSTO TOTAL | H61: =TRUNC(SUM(H59:H60),2) -> 383.68
E62: BDI | H62: =TRUNC(H61*$H$10,2) -> 82.49
E63: PREÇO GLOBAL TOTAL: | H63: =TRUNC(H61+H62,2) -> 466.17
A65: DIÁRIA SEM HOSPEDAGEM
A66: CPU-06 | B66: REFERÊNCIA | C66: CÓDIGO | D66: DIÁRIA PARA VIAGEM SEM HOSPEDAGEM | E66: DIÁRIA | F66: QUANTIDADE | G66: CUSTO UNITÁRIO | H66: TOTAL
A67: COMPOSIÇÃO | B67: ='INSUMOS E SERVIÇOS - PREÇOS'!B36 -> CODEVASF | C67: ='INSUMOS E SERVIÇOS - PREÇOS'!D36 -> COT-07 | D67: ='INSUMOS E SERVIÇOS - PREÇOS'!A36 -> VIAGEM - ALIMENTAÇÃO | E67: ='INSUMOS E SERVIÇOS - PREÇOS'!E36 -> UND | F67: 1 | G67: ='INSUMOS E SERVIÇOS - PREÇOS'!F36 -> 109.21 | H67: =TRUNC(F67*G67,2) -> 109.21
E68: CUSTO TOTAL | H68: =TRUNC(SUM(H67:H67),2) -> 109.21
E69: BDI | H69: =TRUNC(H68*$H$10,2) -> 23.48
E70: PREÇO GLOBAL TOTAL: | H70: =TRUNC(H68+H69,2) -> 132.69

Sheet INSUMOS E SERVIÇOS - PREÇOS
A2: OBJETO: EXECUÇÃO DE SERVIÇOS DE ESCAVAÇÃO EM SOLO DE 1ª CATEGORIA, OBJETIVANDO À IMPLANTAÇÃO DE RESERVATÓRIOS PARA ACÚMULO DE ÁGUA EM COMUNIDADES DE CARÁTER RURAL EM DIVERSOS MUNICÍPIOS DO ESTADO DA BAHIA, NA ÁREA DE ATUAÇÃO DA 2ª SR DA CODEVASF.
A4: ESPECIFICAÇÃO DO ITEM DA COMPOSIÇÃO - SICRO (NÃO DESONERADO) | B4: REFERÊNCIA | C4: MÊS DE REFERÊNCIA | D4: CÓDIGO | E4: UNIDADE | F4: CUSTO UNITÁRIO PRODUTIVO | G4: CUSTO UNITÁRIO IMPRODUTIVO
A5: CAVALO MECÂNICO COM SEMIRREBOQUE COM CAPACIDADE DE 32 T - 302 KW | B5: SICRO BAHIA | C5: 2025-07-01 | D5: E9666 | E5: H | F5: 472.366 | G5: 148.9355
A6: RETROESCAVADEIRA DE PNEUS - CAPACIDADE DA CAÇAMBA DA PÁ CARREGADEIRA DE 0,76 M³ E DA RETROESCAVADEIRA DE 0,29 M³ - 58 KW | B6: SICRO BAHIA | C6: 2025-07-01 | D6: E9526 | E6: H | F6: 162.0506 | G6: 87.2383
A8: ESPECIFICAÇÃO DO ITEM DA COMPOSIÇÃO - SINAPI (NÃO DESONERADO) | B8: SINAPI | C8: MÊS DE REFERÊNCIA | D8: CÓDIGO | E8: UNIDADE | F8: CUSTO UNITÁRIO PRODUTIVO | G8: CUSTO UNITÁRIO IMPRODUTIVO
A9: AREIA MEDIA - POSTO JAZIDA/FORNECEDOR (RETIRADO NA JAZIDA, SEM TRANSPORTE) | B9: SINAPI BAHIA | C9: 2025-08-01 | D9: 370 | E9: M³ | F9: 139.89
A10: AUXILIAR DE TOPÓGRAFO COM ENCARGOS COMPLEMENTARES | B10: SINAPI BAHIA | C10: 2025-08-01 | D10: 88253 | E10: H | F10: 17.51
A11: BETONEIRA CAPACIDADE NOMINAL 400 L, CAPACIDADE DE MISTURA 310 L, MOTOR A DIESEL POTÊNCIA 5,0 HP, SEM CARREGADOR - CHP DIURNO. AF_06/2014 | B11: SINAPI BAHIA | C11: 2025-08-01 | D11: 87445 | E11: H | F11: 5.38
A12: CARPINTEIRO DE FORMAS COM ENCARGOS COMPLEMENTARES | B12: SINAPI BAHIA | C12: 2025-08-01 | D12: 88262 | E12: H | F12: 33.07
A13: CIMENTO PORTLAND COMPOSTO CP II-32 | B13: SINAPI BAHIA | C13: 2025-08-01 | D13: 1379 | E13: KG | F13: 0.8
A14: DESENHISTA/PROJETISTA COM ENCARGOS COMPLEMENTARES | B14: SINAPI BAHIA | C14: 2025-08-01 | D14: 90775 | E14: H | F14: 31.24
A15: ENCARREGADO GERAL COM ENCARGOS COMPLEMENTARES | B15: SINAPI BAHIA | C15: 2025-08-01 | D15: 90776 | E15: H | F15: 40.87
A16: ENGENHEIRO CIVIL (OU AFIM) DE OBRA JUNIOR COM ENCARGOS COMPLEMENTARES | B16: SINAPI BAHIA | C16: 2025-08-01 | D16: 90777 | E16: H | F16: 130.58
A17: GASOLINA COMUM | B17: SINAPI BAHIA | C17: 2025-08-01 | D17: 4222 | E17: L | F17: 6.21
A18: PEDRA BRITADA N. 2 (19 A 38 MM) POSTO PEDREIRA/FORNECEDOR, SEM FRETE | B18: SINAPI BAHIA | C18: 2025-08-01 | D18: 4718 | E18: M³ | F18: 116.7
A19: PLACA DE OBRA (PARA CONSTRUÇÃO CIVIL) EM CHAPA GALVANIZADA *N. 22*, ADESIVADA, DE *2,4 X 1,2* M (SEM POSTES PARA FIXAÇÃO) | B19: SINAPI BAHIA | C19: 2025-08-01 | D19: 4813 | E19: M² | F19: 377.5
A20: PONTALETE *7,5 X 7,5* CM EM PINUS, MISTA OU EQUIVALENTE DA REGIÃO - BRUTA | B20: SINAPI BAHIA | C20: 2025-08-01 | D20: 4491 | E20: M | F20: 9.59
A21: PREGO DE AÇO POLIDO COM CABEÇA 18 X 30 (2 3/4 X 10) | B21: SINAPI BAHIA | C21: 2025-08-01 | D21: 5075 | E21: KG | F21: 16.32
A22: SARRAFO NÃO APARELHADO *2,5 X 7* CM, EM MAÇARANDUBA, ANGELIM OU EQUIVALENTE DA REGIÃO - BRUTA | B22: SINAPI BAHIA | C22: 2025-08-01 | D22: 4417 | E22: M | F22: 7.24
A23: SERVENTE COM ENCARGOS COMPLEMENTARES | B23: SINAPI BAHIA | C23: 2025-08-01 | D23: 88316 | E23: H | F23: 24.37
A24: TOPÓGRAFO COM ENCARGOS COMPLEMENTARES | B24: SINAPI BAHIA | C24: 2025-08-01 | D24: 90781 | E24: H | F24: 40.59
A26: ESPECIFICAÇÃO DO ITEM DA COMPOSIÇÃO - TC DNIT (NÃO DESONERADO) | B26: TC DNIT | C26: MÊS DE REFERÊNCIA | D26: CÓDIGO | E26: UNIDADE | F26: CUSTO UNITÁRIO PRODUTIVO | G26: CUSTO UNITÁRIO IMPRODUTIVO
A27: TOPOGRAFIA (EQUIPAMENTOS BÁSICOS) | B27: TC DNIT | C27: 2025-07-01 | D27: B8958 | E27: CONJ x MÊS | F27: 5426.19
A28: TOPOGRAFIA POR VANT | B28: TC DNIT | C28: 2025-07-01 | D28: B8961 | E28: UND x MÊS | F28: 904.73
A29: VEÍCULO LEVE 53 KW (SEM MOTORISTA) | B29: TC DNIT | C29: 2025-07-01 | D29: E8889 | E29: H | F29: 36.65 | G29: 6.69
A31: ESPECIFICAÇÃO DO ITEM DA COMPOSIÇÃO - COTAÇÕES (NÃO DESONERADO) | B31: COTAÇÃO | C31: MÊS DE REFERÊNCIA | D31: CÓDIGO | E31: UNIDADE | F31: CUSTO UNITÁRIO PRODUTIVO | G31: CUSTO UNITÁRIO IMPRODUTIVO
A32: AUTOCAD CIVIL 3D | B32: CODEVASF | C32: 2025-10-01 | D32: COT-01 | E32: UND x MÊS | F32: 978.75
A33: AUTOCAD RECAP PRO | B33: CODEVASF | C33: 2025-10-01 | D33: COT-02 | E33: UND x MÊS | F33: 163.75
A34: NOTEBOOK + MICROSOFT OFFICE | B34: CODEVASF | C34: 2025-10-01 | D34: COT-05 | E34: UND x MÊS | F34: 141.42
A35: SOFTWARE DE FOTOGAMETRIA (PIX4D OU COMPATÍVEL) | B35: CODEVASF | C35: 2025-10-01 | D35: COT-06 | E35: UND x MÊS | F35: 1690.45
A36: VIAGEM - ALIMENTAÇÃO | B36: CODEVASF | C36: 2025-10-01 | D36: COT-07 | E36: UND | F36: 109.21
A37: VIAGEM - HOSPEDAGEM | B37: CODEVASF | C37: 2025-10-01 | D37: COT-08 | E37: UND | F37: 274.47

Sheet AUX-Cotações
B2: COTAÇÕES E COMPOSIÇÕES DE CUSTO UNITÁRIO PARA ALUGUEL DE EQUIPAMENTOS E SOFTWARE
I3: MÊS DA COLETA DE PREÇOS: | J3: 2025-10-01
B5: VALOR DE REFERÊCIA DE AQUISIÇÃO
B6: CÓDIGO | C6: ITEM | D6: VALORES COTADOS PARA AQUISIÇÃO DO EQUIPAMENTO - PAINEL DE PREÇOS
D7: Mediana | E7: Mínimo | F7: Máximo | G7: MÉDIA DE AQUISIÇÃO | H7: VALOR DE REFERÊNCIA
B8: COTAÇÃO | C8: Notebook, Tela Superior a 14 Polegadas, Memória RAM Superior a 8 GB | D8: 3207 | E8: 2567.8 | F8: 4890 | G8: 3279.92 | H8: =MIN(D8,G8) -> 3207
B10: CÓDIGO | C10: ITEM | D10: VALOR MENSAL DA LICENÇA
D11: Valor/Usuário X Mês | G11: MÉDIA DE AQUISIÇÃO / MÊS | H11: VALOR DE REFERÊNCIA
B12: COTAÇÃO | C12: Licença Microsoft 365 Business Basic | D12: 33.4 | G12: =ROUND(AVERAGE(B12:E12),2) -> 33.4 | H12: =MIN(D12,G12) -> 33.4
B14: CÓDIGO | C14: ITEM | D14: VALOR MENSAL DA LICENÇA
D15: Valor/Usuário x Ano | G15: MÉDIA DE AQUISIÇÃO / MÊS | H15: VALOR DE REFERÊNCIA
B16: COT-01 | C16: AutoCAD Civil 3D | D16: 11745 | G16: =ROUND(AVERAGE(B16:E16),2)/12 -> 978.75 | H16: =MIN(D16,G16) -> 978.75
B18: CÓDIGO | C18: ITEM | D18: VALOR MENSAL DA LICENÇA
D19: Valor/Usuário x Mês | G19: MÉDIA DE AQUISIÇÃO / MÊS | H19: VALOR DE REFERÊNCIA
B20: COT-06 | C20: Software de fotogametria (Pix4D ou compatível) | D20: =291.67*J21 -> 1690.446402 | G20: =D20 -> 1690.446402 | H20: =MIN(D20,G20) -> 1690.446402 | I20: A 2ª/SR possui licença do PIX4D, por isso o software de apoio deve ser compatível
I21: Cotação média do dólar (2025-presente) = | J21: ='[1]MC AUX'!D128 -> 5.79575
B22: CÓDIGO | C22: ITEM | D22: VALOR MENSAL DA LICENÇA
D23: Valor/Usuário x Ano | G23: MÉDIA DE AQUISIÇÃO / MÊS | H23: VALOR DE REFERÊNCIA
B24: COT-02 | C24: AutoCAd Recap Pro | D24: 1650 | G24: 190 | H24: =AVERAGE(D24/12,G24) -> 163.75 | I24: Processamento de nuvem de pontos
B26: CÓDIGO | C26: ITEM | D26: VALOR MENSAL DA LICENÇA
D27: Valor/Usuário x Ano | G27: MÉDIA DE AQUISIÇÃO / MÊS | H27: VALOR DE REFERÊNCIA
B28: COT-06 | C28: AutoCad Revit | D28: 12305 | G28: 1488 | H28: =AVERAGE(D28/12,G28) -> 1256.708333
B30: VALOR DE REFERÊNCIA DE LOCAÇÃO
B31: CCÓDIGO | C31: NOTEBOOK + Microsoft Office | D31: VALOR DA DEPRECIAÇÃO | H31: MANUTENÇÃO | J31: VALOR MENSAL TOTAL (R$)
D32: Tempo de Utilização (Anos) | E32: Meses p/Ano de Uso | F32: Percentual Residual (%) | G32: Depreciação Mensal - R$ | H32: Percentual Anual (%) | I32: Valor Mensal (R$)
B33: COT-05 | C33: =H8+H12 -> 3240.4 | D33: 5 | E33: 12 | F33: 0 | G33: =ROUND((C33*(100%-F33))/(D33*E33),2) -> 54.01 | H33: 0.2 | I33: =ROUND((H33*C33)/12,2) -> 54.01 | J33: =I33+G33+H12 -> 141.42 | K33: Obs: vida útil de 5 anos e depreciação de 20% a.a.

Sheet MOBIL. REV. PRIMÁRIO
B2: MINISTÉRIO DA INTEGRAÇÃO E DO DESENVOLVIMENTO REGIONAL - M. I. D. R.
B3: COMPANHIA DE DESENVOLVIMENTO DOS VALES DO SÃO FRANCISCO E DO PARNAÍBA
B4: 2ª SUPERINTENDÊNCIA REGIONAL - SEDIADA EM BOM JESUS DA LAPA/BA.
B5: GERÊNCIA DE INFRAESTRUTURA - 2ª/GRD
B7: OBJETO: EXECUÇÃO DE SERVIÇOS DE ESCAVAÇÃO EM SOLO DE 1ª CATEGORIA, OBJETIVANDO À IMPLANTAÇÃO DE RESERVATÓRIOS PARA ACÚMULO DE ÁGUA EM COMUNIDADES DE CARÁTER RURAL EM DIVERSOS MUNICÍPIOS DO ESTADO DA BAHIA, NA ÁREA DE ATUAÇÃO DA 2ª SR DA CODEVASF.
B11: MEMÓRIA DE CÁLCULO DOS MOMENTOS DE TRANSPORTE PARA MOBILIZAÇÃO E DESMOBILIZAÇÃO EM REVESTIMENTO PRIMÁRIO
B14: Cidade de Origem: | D14: Cidade Pólo
B15: Destino: | D15: Local da Execução
B16: Dist. a Origem : | D16: 50 | E16: km
B17: Quant. de Municípios: | D17: 1
B19: Distância Total: | D19: 30 | E19: km
B21: Peso das máquinas: | F21: Retroescavadeira de pneus - 58 kW | I21: 7.86 | J21: toneladas
F24: Total | I24: =ROUND((SUM(I21:I23)),2) -> 7.86 | J24: toneladas
B27: ="Momento de transporte = "&TEXT(I24,"0,00")&" x "&TEXT(D19,"0,00")&" =>" -> Momento de transporte = 7,86 x 30,00 => | G27: =TRUNC(D19*I24,2) -> 235.8 | I27: t x km

Sheet MOBIL. VIA ASFALTADA
B2: MINISTÉRIO DA INTEGRAÇÃO E DO DESENVOLVIMENTO REGIONAL - M. I. D. R.
B3: COMPANHIA DE DESENVOLVIMENTO DOS VALES DO SÃO FRANCISCO E DO PARNAÍBA
B4: 2ª SUPERINTENDÊNCIA REGIONAL - SEDIADA EM BOM JESUS DA LAPA/BA.
B5: GERÊNCIA DE INFRAESTRUTURA - 2ª/GRD
B7: OBJETO: EXECUÇÃO DE SERVIÇOS DE ESCAVAÇÃO EM SOLO DE 1ª CATEGORIA, OBJETIVANDO À IMPLANTAÇÃO DE RESERVATÓRIOS PARA ACÚMULO DE ÁGUA EM COMUNIDADES DE CARÁTER RURAL EM DIVERSOS MUNICÍPIOS DO ESTADO DA BAHIA, NA ÁREA DE ATUAÇÃO DA 2ª SR DA CODEVASF.
B11: MEMÓRIA DE CÁLCULO DOS MOMENTOS DE TRANSPORTE PARA MOBILIZAÇÃO E DESMOBILIZAÇÃO EM VIA ASFALTADA
B14: Cidade de Origem: | D14: Cidade Pólo
B15: Destino: | D15: Local da Execução
B16: Dist. a Origem : | D16: 50 | E16: km
B17: Quant. de Municípios: | D17: 1
B19: Distância Total: | D19: 40 | E19: km
B21: Peso das máquinas: | F21: Retroescavadeira de pneus - 58 kW | I21: 7.86 | J21: toneladas
F24: Total | I24: =ROUND((SUM(I21:I23)),2) -> 7.86 | J24: toneladas
B27: ="Momento de transporte = "&TEXT(I24,"0,00")&" x "&TEXT(D19,"0,00")&" =>" -> Momento de transporte = 7,86 x 40,00 => | G27: =TRUNC(D19*I24,2) -> 314.4 | I27: t x km

Sheet BDI M. DE OBRA E SERVIÇOS
B2: PLANILHA DE DETALHAMENTO DO BDI
B4: OBJETO: | C4: EXECUÇÃO DE SERVIÇOS DE ESCAVAÇÃO EM SOLO DE 1ª CATEGORIA, OBJETIVANDO À IMPLANTAÇÃO DE RESERVATÓRIOS PARA ACÚMULO DE ÁGUA EM COMUNIDADES DE CARÁTER RURAL EM DIVERSOS MUNICÍPIOS DO ESTADO DA BAHIA, NA ÁREA DE ATUAÇÃO DA 2ª SR DA CODEVASF.
B6: MEMÓRIA DE CALCULO DO BDI DOS SERVIÇOS - NÃO DESONERADO
K7: Obras rodoviárias
B8: BDI APLICADO NA OBRA (SEM RISCO, SEGURO E GARANTIA) | F8: FAIXAS DE ADMISSIBILIDADE DE ACORDO COM O ACORDÃO N.º 2622/2013 DO TCU | K8: FAIXAS DE ADMISSIBILIDADE DE ACORDO COM O ACORDÃO N.º 2622/2013 DO TCU
B9: ITEM | C9: DISCRIMINAÇÃO | D9: PERC. (%)
F10: MÍNIMO | G10: MÉDIO | I10: MÁXIMO | K10: MÍNIMO | L10: MÉDIO | N10: MÁXIMO
B12: 1.00 | C12: Despesas Indiretas
B13: A1 | C13: Seguro e Garantia | D13: 0.0034 | F13: 0.0032 | G13: 0.004 | I13: 0.0074 | K13: 0.0032 | L13: 0.004 | N13: 0.0074
B14: A2 | C14: Riscos e Imprevistos | D14: 0.005 | F14: 0.005 | G14: 0.0056 | I14: 0.0097 | K14: 0.005 | L14: 0.0056 | N14: 0.0097
B15: A3 | C15: Despesas Financeiras | D15: 0.0102 | F15: 0.0102 | G15: 0.0111 | I15: 0.0121 | K15: 0.0102 | L15: 0.0111 | N15: 0.0121
B16: A4 | C16: Administração Central | D16: 0.038 | F16: 0.038 | G16: 0.0401 | I16: 0.0467 | K16: 0.038 | L16: 0.0401 | N16: 0.0467
B17: Total do Grupo A = | D17: =SUM(D13:D16) -> 0.0566
B19: 2.00 | C19: Benefício
B20: B-1 | C20: LUCRO | D20: 0.073 | F20: 0.0664 | G20: 0.073 | I20: 0.0869 | K20: 0.0664 | L20: 0.073 | N20: 0.0869
B21: Total do Grupo B = | D21: =SUM(D20) -> 0.073
B23: 3.00 | C23: Impostos | F23: CÁLCULO DO ISS
B24: C-1 | C24: PIS / PASEP | D24: 0.0065 | F24: ALÍQUOTA MUNICIPAL (%) | G24: % DE MÃO DE OBRA | I24: ALÍQUOTA FINAL (%)
B25: C-2 | C25: COFINS | D25: 0.03
B26: C-3 | C26: ISS | D26: =I27 -> 0.03
F27: 0.05 | G27: 0.6 | I27: =G27*F27 -> 0.03
B28: C-4 | C28: CPRB (Contribuição Previdenciária sobre o Lucro Bruto) | D28: 0
B29: Total do Grupo C = | D29: =SUM(D24:D28) -> 0.0665
C31: Fórmula Para Cálculo do B.D.I.:
B33: BDI =(((1+A4+A1+A2)*(1+A3)*(1+B1))/(1-C))-1
B36: Bonificação Sobre Despesas indiretas (B.D.I.) = | D36: =TRUNC(((((1+D16+D13+D14)*(1+D15)*(1+D21))/(1-D29))-1),4) -> 0.215

Sheet DET. ENCARGOS
A1: MINISTÉRIO DA INTEGRAÇÃO E DO DESENVOLVIMENTO REGIONAL - MIDR
A2: COMPANHIA DE DESENVOLVIMENTO DOS VALES DO SÃO FRANCISCO E DO PARNAÍBA
A3: 2ª SUPERINTENDÊNCIA REGIONAL - BOM JESUS DA LAPA/BA.
A5: OBJETO: EXECUÇÃO DE SERVIÇOS DE ESCAVAÇÃO EM SOLO DE 1ª CATEGORIA, OBJETIVANDO À IMPLANTAÇÃO DE RESERVATÓRIOS PARA ACÚMULO DE ÁGUA EM COMUNIDADES DE CARÁTER RURAL EM DIVERSOS MUNICÍPIOS DO ESTADO DA BAHIA, NA ÁREA DE ATUAÇÃO DA 2ª SR DA CODEVASF.
A7: DETALHAMENTO DE ENCARGOS SOCIAIS - HORISTAS E MENSALISTAS (SEM DESONERAÇÃO)
A9: DISCRIMINAÇÃO | C9: HORISTA | D9: MENSALISTA
C10: % | D10: %
A11: A | B11: ENCARGOS SOCIAIS BÁSICOS
A12: A1 | B12: INSS | C12: 20 | D12: 20
A13: A2 | B13: SESI | C13: 1.5 | D13: 1.5
A14: A3 | B14: SENAI | C14: 1 | D14: 1
A15: A4 | B15: INCRA | C15: 0.2 | D15: 0.2
A16: A5 | B16: SEBRAE | C16: 0.6 | D16: 0.6
A17: A6 | B17: Salário Educação | C17: 2.5 | D17: 2.5
A18: A7 | B18: Seguro Contra Acidente de Trabalho | C18: 3 | D18: 3
A19: A8 | B19: FGTS | C19: 8 | D19: 8
A20: A9 | B20: SECONCI | C20: 0 | D20: 0
A21: SUBTOTAL DE “A”: | C21: =SUM(C12:C20) -> 36.8 | D21: =SUM(D12:D20) -> 36.8
A22: B | B22: ENCARGOS SOCIAIS QUE RECEBEM INCIDÊNCIA DE “A”
A23: B1 | B23: Repouso Semanal Remunerado | C23: 17.98 | D23: Não incide
A24: B2 | B24: Feriados | C24: 3.97 | D24: Não incide
A25: B3 | B25: Auxílio-Enfermidade | C25: 0.86 | D25: 0.65
A26: B4 | B26: 13º Salário | C26: 11.07 | D26: 8.33
A27: B5 | B27: Licença Paternidade | C27: 0.07 | D27: 0.05
A28: B6 | B28: Faltas Justificadas | C28: 0.74 | D28: 0.56
A29: B7 | B29: Dias de Chuva | C29: 2.14 | D29: Não incide
A30: B8 | B30: Auxílio Acidente de Trabalho | C30: 0.1 | D30: 0.07
A31: B9 | B31: Férias Gozadas | C31: 11.92 | D31: 8.97
A32: B10 | B32: Salário Maternidade | C32: 0.03 | D32: 0.03
A33: SUBTOTAL DE “B”: | C33: =SUM(C23:C32) -> 48.88 | D33: =SUM(D25,D26,D27,D28,D30,D31,D32) -> 18.66
A34: C | B34: ENCARGOS SOCIAIS QUE NÃO RECEBEM INCIDÊNCIA DE “A”
A35: C1 | B35: Aviso Prévio Indenizado | C35: 5.49 | D35: 4.13
A36: C2 | B36: Aviso Prévio Trabalhado | C36: 0.13 | D36: 0.1
A37: C3 | B37: Férias Indenizadas | C37: 2.36 | D37: 1.77
A38: C4 | B38: Depósito Rescisão Sem Justa Causa | C38: 2.97 | D38: 2.24
A39: C5 | B39: Indenização Adicional | C39: 0.46 | D39: 0.35
A40: SUBTOTAL DE “C”: | C40: =SUM(C35:C39) -> 11.41 | D40: =SUM(D35:D39) -> 8.59
A41: D | B41: REINCIDÊNCIAS DE UM GRUPO SOBRE O OUTRO
A42: D1 | B42: Reincidência de “A” sobre “B” | C42: 17.99 | D42: 6.87
A43: D2 | B43: Reincidência de Grupo A sobre Aviso Prévio Trabalhado e Reincidência do FGTS sobre Aviso Prévio Indenizado | C43: 0.49 | D43: 0.37
A44: SUBTOTAL DE “D”: | C44: =SUM(C42:C43) -> 18.48 | D44: =SUM(D42:D43) -> 7.24
A45: TOTAIS DE ENCARGOS SOCIAIS (%): | C45: =SUM(C21,C33,C40,C44) -> 115.57 | D45: =SUM(D21,D33,D40,D44) -> 71.29
